Workbook

Sheet Customer Information
B2: FALSE
D4: BPA UES Leak Abatement Energy Savings Calculator
D5: and Incentive Funding Application Tool
D6: PARTICIPANT INFORMATION
D7: Company Name: | S7: Prepared By: | AC7: Date:
D9: Contact: | R9: Title:
D11: Mailing Address: | R11: City: | Z11: State: | AC11: Zip:
D13: Cell/Tel: | L13: Fax: | S13: Email:
D17: PROJECT INFORMATION
D19: Project Is In (check one):
D20: Electric Utility Provider:
D22: Name of Utility: | Q22: Electric Utility Account Number: | Z22: Average Electric Rate per kWh:
D24: Project Site Address, if Different: | Q24: City: | Z24: Zip:
D26: County: | M26: # of Leak Fixes: | Q26: Local Tax Rate:
M27: 1
D29: UTILITY INCENTIVE PROGRAM INFORMATION
D30: Incentive Rate Offered by Utility: | M30: Incentive Percent Cost Cap: | V30: Incentive Cap:
G31: per kWh annual savings | P31: of eligible project cost (eg 50%) | Z31: max dollar value
D32: Additional Non-utility Funding (if applicable): | M32: Other notes:
D35: VENDOR INFORMATION
D36: Company: | P36: Sales Representative: | Y36: Cell/Tel:
D43: TO APPLY FOR INCENTIVES FROM YOUR LOCAL ELECTRIC UTILITY:
E44: 1) | F44: Check with your local utility regarding the availability of incentives for leak repairs.
F45: The utility will help you get in touch with the people who handle incentive administration.
E46: 2) | F46: Enter the information requested above for participant, project, vendor, baseline energy use, proposed
F47: leak repairs, operating characteristics of the system, and assumptions.
E48: 3) | F48: Send this file as an email attachment to the incentive administrator. Include a copy of the proposal
F49: or quotation for the leak repairs.
E50: 4) | F50: The utility's incentive administrator will review the calculator's inputs and outputs, call with questions,
F51: and request any additional documentation that may be needed. Once the technical aspects of the proposed
F52: project have been approved and the estimated incentive amount has been confirmed, if you wish
F53: to move ahead with the project, the incentive administrator will secure funding approval from the utility.
E54: 5) | F54: Once the funding agreement is in place, equipment may be ordered and installed. Please note that
F55: a utility will not offer funding for projects in which equipment has been ordered prior to the utility's
F56: (and in some cases, BPA's) approval of funding.
E57: 6) | F57: When installation is complete, notify the utility's incentive administrator. The administrator will
F58: request copies of invoices, ask you to sign a completion certification form, and may inspect
F59: the installation. If conditions are significantly different from those represented in the analysis, the
F60: amount of the incentive may be affected. Incentive checks are typically mailed 4 to 6 weeks after
F61: receipt of the completion form and invoices.
B65: =" Cascade Energy, Inc. © "&YEAR(TODAY()) -> Cascade Energy, Inc. © 2021 | AG65: =ToolName&" v"&ToolVersion & " " -> Leak Abatement Energy Savings Tool v2.4
D106: TO APPLY FOR INCENTIVES FROM ENERGY TRUST OF OREGON: | AG106: for Energy Trust Projects
E107: 1) | F107: Enter the information requested above about participant, project, vendor, baseline energy use, proposed
F108: leak repairs, operating characteristics of the system, and assumptions. | AR108: FALSE
E109: 2) | F109: Send this Excel file as an email attachment to smallindustrial@energytrust.org. Include a copy of the proposal
F110: or quotation for the leak repairs.
E111: 3) | F111: Energy Trust will review inputs and outputs and call with any questions. Upon approval, Energy Trust will then
F112: provide an offer of funding for review and acceptance by Participant.
E113: 4) | F113: Participant completes the entries in the Energy Trust agreement, signs, and returns the agreement to Energy
F114: Trust.
E115: 5) | F115: Order equipment and schedule the installation. Please note that Energy Trust must approve funding
F116: before equipment is ordered.
E117: 6) | F117: When installation is complete, notify Energy Trust. Energy Trust will request copies of invoices, ask you to
F118: sign a completion certification form, and may inspect the installation. If conditions are significantly different
F119: from those represented in the analysis, the amount of the incentive may be affected. Incentive checks are
F120: mailed 3 to 6 weeks after receipt of the completion form and invoices.
D126: TO APPLY FOR INCENTIVES FROM YOUR LOCAL ELECTRIC UTILITY: | AG126: for Oregon, non-Energy Trust projects
E127: 1) | F127: Check with your local utility regarding the availability of incentives for leak repairs.
F128: The utility will help you get in touch with the people who handle administration of incentives.
E129: 2) | F129: Enter the information requested above about participant, project, vendor, baseline energy use, proposed
F130: leak repairs, operating characteristics of the system, and assumptions.
E131: 3) | F131: Send this Excel file as an email attachment to the incentive administrator. Include a copy of the proposal
F132: or quotation for the leak repairs.
E133: 4) | F133: The utility's incentive administrator will review the calculator's inputs and outputs, call with questions,
F134: and request any additional documentation that may be needed. Once the technical aspects of the proposed
F135: project have been approved and the estimated incentive amount has been confirmed, if Participant wishes
F136: to move ahead with the project, the incentive administrator will secure funding approval from the utility.
E137: 5) | F137: Once the funding agreement is in place, equipment may be ordered and installed. Please note that
F138: a utility will not offer funding for projects in which equipment has been ordered prior to the utility's
F139: (and in some cases, BPA's) approval of funding.
E140: 6) | F140: When installation is complete, notify the utility's incentive administrator. The administrator will
F141: request copies of invoices, ask Participant to sign a completion certification form, and may inspect
F142: the installation. If conditions are significantly different from those represented in the analysis, the
F143: amount of the incentive may be affected. Incentive checks are typically mailed 4 to 6 weeks after
F144: receipt of the completion form and invoices.
D146: TO APPLY FOR INCENTIVES FROM YOUR LOCAL ELECTRIC UTILITY: | AG146: for non-Oregon projects
E147: 1) | F147: Check with your local utility regarding the availability of incentives for water leak repairs. | AP147: Is "Other Utility"? | AR147: FALSE
F148: The utility will help you get in touch with the people who handle administration of incentives. | AP148: Is BPA Project? | AR148: TRUE
E149: 2) | F149: Enter the information requested above about participant, project, vendor, baseline energy use,
F150: leak repairs, operating characteristics of the system, and assumptions.
E151: 3) | F151: Send this Excel file as an email attachment to the incentive administrator. Include a copy of the proposal
F152: or quotation for the leak repairs.
E153: 4) | F153: The utility's incentive administrator will review the calculator's inputs and outputs, call with questions,
F154: and request any additional documentation that may be necessary. Once the technical aspects of the
F155: proposed project have been approved and the estimated incentive amount has been confirmed, if
F156: Participant wishes to move ahead with the project, the incentive administrator will secure funding
F157: approval from the utility.
E158: 5) | F158: Once the funding agreement is in place, equipment may be ordered and installed. Please note that
F159: a utility will not offer funding for projects in which equipment has been ordered prior to the utility's
F160: (and in some cases, BPA's) approval of funding.
E161: 6) | F161: When installation is complete, notify the utility's incentive administrator. The administrator will
F162: request copies of invoices, ask Participant to sign a completion certification form, and may inspect
F163: the installation. If conditions are significantly different from those represented in the analysis, the
F164: amount of the incentive may be affected. Incentive checks are typically mailed 4 to 6 weeks after
F165: receipt of the completion form and invoices.
AG166: BLANK CELLS IN THE NEXT 19 LINES FOR CLEARING INSTRUCTIONS.
D186: TO APPLY FOR INCENTIVES FROM ROCKY MOUNTAIN POWER: | AG186: for Rocky Mountain Power projects
E187: 1) | F187: Check with Rocky Mountain Power to get in touch with the people who handle the administration
F188: of incentives for water leak repairs at www.rockymountainpower.net/wattsmart or 801-642-4472.
E189: 2) | F189: Enter the information requested above about participant, project, vendor, baseline energy use, proposed
F190: leak repairs, operating characteristics of the system, and assumptions.
E191: 3) | F191: Send this Excel file as an email attachment to the incentive administrator. Include a copy of the proposal
F192: or quotation for the leak repairs
E193: 4) | F193: The incentive administrator will review the calculator's inputs and outputs, call with questions,
F194: and request any additional documentation that may be necessary to establish the incentive estimate.
F195: While this step is not required in order to receive an incentive, it is recommended, because it provides an
F196: opportunity for the incentive administrator to concur with the assumptions supporting the savings estimate
F197: upon which the incentive will be based.
E198: 5) | F198: Order and install the equipment.
E199: 6) | F199: Complete the incentive application/agreement, which can be downloaded from the website given above.
F200: Send the completed application with a copy of dated invoices or receipts substantiating the project cost
F201: to the address given on the application. Please allow six weeks for your incentive check to arrive.
E202: 7) | F202: Please note that incentive qualifications and amounts are subject to change and termination at any time.
F203: Rocky Mountain Power reserves the right to conduct inspections to verify information provided in the application
F204: and to inspect equipment after payment of incentives. Inspections may include a telephone survey,
F205: site visit, and/or the installation of temporary monitoring equipment at any time up to 36 months after installation.
D207: TO APPLY FOR INCENTIVES FROM PACIFIC POWER: | AG207: for Pacific Power projects
E208: 1) | F208: Check with Pacific Power to get in touch with the people who handle the administration
F209: of incentives for water leak repairs. See http://www.pacificpower.net/wattsmart.
E210: 2) | F210: Enter the information requested above about participant, project, vendor, baseline energy use proposed
F211: leak repairs, operating characteristics of the system, and assumptions.
E212: 3) | F212: Send this Excel file as an email attachment to the incentive administrator. Include a copy of the proposal
F213: or quotation for the leak repairs.
E214: 4) | F214: The incentive administrator will review the calculator's inputs and outputs, call with questions,
F215: and request any additional documentation that may be necessary to establish the energy savings estimate.
F216: While this step is not required in order to receive an incentive, it is recommended because it provides an
F217: opportunity for the incentive administrator to concur with the assumptions supporting the savings estimate upon
F218: which the incentive will be based.
E219: 5) | F219: Order and install the equipment.
E220: 6) | F220: Complete the incentive application/agreement, which can be downloaded from the website given above.
F221: Send the completed application with a copy of dated invoices or receipts substantiating the project cost
F222: to the address given on the application. Please allow six weeks for your incentive check to arrive.
E223: 7) | F223: Please note that incentive qualifications and amounts are subject to change and termination at any time.
F224: Pacific Power reserves the right to conduct inspections to verify information provided in the application
F225: and to inspect equipment after payment of incentives. Inspections may include a telephone survey,
F226: site visit, and/or the installation of temporary monitoring equipment at any time up to 36 months after installation.
D233: Technical Reviewer to complete the cells below:
I234: Technical Review by:
I235: Technical Review Date:
I236: Calculator Type:
I237: Sector: | J237: Industrial
I238: Project Name: | J238: Water Leak Repairs
AJ249: Calculator Type List | AK249: Sector List
AJ250: Retrofit | AK250: Industrial
AJ251: New Construction | AK251: Commercial
AJ252: Major Remodel | AK252: Agricultural
C261: 5

Sheet Leak Specifications
C3: ="LEAK FIX # "&B76 -> LEAK FIX # 1 | W3: Approval for Incentive: | X3: Preliminary | AC3: ="LEAK FIX # "&AB76 -> LEAK FIX # 2 | AW3: Approval for Incentive: | BC3: ="LEAK FIX # "&BB76 -> LEAK FIX # 3 | BW3: Approval for Incentive: | CC3: ="LEAK FIX # "&CB76 -> LEAK FIX # 4 | CW3: Approval for Incentive: | DC3: ="LEAK FIX # "&DB76 -> LEAK FIX # 5 | DW3: Approval for Incentive: | EC3: ="LEAK FIX # "&EB76 -> LEAK FIX # 6 | EW3: Approval for Incentive: | FC3: ="LEAK FIX # "&FB76 -> LEAK FIX # 7 | FW3: Approval for Incentive: | GC3: ="LEAK FIX # "&GB76 -> LEAK FIX # 8 | GW3: Approval for Incentive: | HC3: ="LEAK FIX # "&HB76 -> LEAK FIX # 9 | HW3: Approval for Incentive: | IC3: ="LEAK FIX # "&IB76 -> LEAK FIX # 10 | IW3: Approval for Incentive: | JC3: ="LEAK FIX # "&JB76 -> LEAK FIX # 11 | JW3: Approval for Incentive: | KC3: ="LEAK FIX # "&KB76 -> LEAK FIX # 12 | KW3: Approval for Incentive: | LC3: ="LEAK FIX # "&LB76 -> LEAK FIX # 13 | LW3: Approval for Incentive: | MC3: ="LEAK FIX # "&MB76 -> LEAK FIX # 14 | MW3: Approval for Incentive: | NC3: ="LEAK FIX # "&NB76 -> LEAK FIX # 15 | NW3: Approval for Incentive: | OC3: ="LEAK FIX # "&OB76 -> LEAK FIX # 16 | OW3: Approval for Incentive: | PC3: ="LEAK FIX # "&PB76 -> LEAK FIX # 17 | PW3: Approval for Incentive: | QC3: ="LEAK FIX # "&QB76 -> LEAK FIX # 18 | QW3: Approval for Incentive: | RC3: ="LEAK FIX # "&RB76 -> LEAK FIX # 19 | RW3: Approval for Incentive: | SC3: ="LEAK FIX # "&SB76 -> LEAK FIX # 20 | SW3: Approval for Incentive:
C5: Customer: | E5: =IF(ISBLANK(CompanyName),"",CompanyName&" – " &SiteCity&", "&SiteState) -> – , | AC5: Customer: | AE5: =IF(ISBLANK(CompanyName),"",CompanyName&" – " &SiteCity&", "&SiteState) -> – , | BC5: Customer: | BE5: =IF(ISBLANK(CompanyName),"",CompanyName&" – " &SiteCity&", "&SiteState) -> – , | CC5: Customer: | CE5: =IF(ISBLANK(CompanyName),"",CompanyName&" – " &SiteCity&", "&SiteState) -> – , | DC5: Customer: | DE5: =IF(ISBLANK(CompanyName),"",CompanyName&" – " &SiteCity&", "&SiteState) -> – , | EC5: Customer: | EE5: =IF(ISBLANK(CompanyName),"",CompanyName&" – " &SiteCity&", "&SiteState) -> – , | FC5: Customer: | FE5: =IF(ISBLANK(CompanyName),"",CompanyName&" – " &SiteCity&", "&SiteState) -> – , | GC5: Customer: | GE5: =IF(ISBLANK(CompanyName),"",CompanyName&" – " &SiteCity&", "&SiteState) -> – , | HC5: Customer: | HE5: =IF(ISBLANK(CompanyName),"",CompanyName&" – " &SiteCity&", "&SiteState) -> – , | IC5: Customer: | IE5: =IF(ISBLANK(CompanyName),"",CompanyName&" – " &SiteCity&", "&SiteState) -> – , | JC5: Customer: | JE5: =IF(ISBLANK(CompanyName),"",CompanyName&" – " &SiteCity&", "&SiteState) -> – , | KC5: Customer: | KE5: =IF(ISBLANK(CompanyName),"",CompanyName&" – " &SiteCity&", "&SiteState) -> – , | LC5: Customer: | LE5: =IF(ISBLANK(CompanyName),"",CompanyName&" – " &SiteCity&", "&SiteState) -> – , | MC5: Customer: | ME5: =IF(ISBLANK(CompanyName),"",CompanyName&" – " &SiteCity&", "&SiteState) -> – , | NC5: Customer: | NE5: =IF(ISBLANK(CompanyName),"",CompanyName&" – " &SiteCity&", "&SiteState) -> – , | OC5: Customer: | OE5: =IF(ISBLANK(CompanyName),"",CompanyName&" – " &SiteCity&", "&SiteState) -> – , | PC5: Customer: | PE5: =IF(ISBLANK(CompanyName),"",CompanyName&" – " &SiteCity&", "&SiteState) -> – , | QC5: Customer: | QE5: =IF(ISBLANK(CompanyName),"",CompanyName&" – " &SiteCity&", "&SiteState) -> – , | RC5: Customer: | RE5: =IF(ISBLANK(CompanyName),"",CompanyName&" – " &SiteCity&", "&SiteState) -> – , | SC5: Customer: | SE5: =IF(ISBLANK(CompanyName),"",CompanyName&" – " &SiteCity&", "&SiteState) -> – ,
C7: Definition of the Leak Fix | AC7: Definition of the Leak Fix | BC7: Definition of the Leak Fix | CC7: Definition of the Leak Fix | DC7: Definition of the Leak Fix | EC7: Definition of the Leak Fix | FC7: Definition of the Leak Fix | GC7: Definition of the Leak Fix | HC7: Definition of the Leak Fix | IC7: Definition of the Leak Fix | JC7: Definition of the Leak Fix | KC7: Definition of the Leak Fix | LC7: Definition of the Leak Fix | MC7: Definition of the Leak Fix | NC7: Definition of the Leak Fix | OC7: Definition of the Leak Fix | PC7: Definition of the Leak Fix | QC7: Definition of the Leak Fix | RC7: Definition of the Leak Fix | SC7: Definition of the Leak Fix
C9: Location: | AC9: Location: | BC9: Location: | CC9: Location: | DC9: Location: | EC9: Location: | FC9: Location: | GC9: Location: | HC9: Location: | IC9: Location: | JC9: Location: | KC9: Location: | LC9: Location: | MC9: Location: | NC9: Location: | OC9: Location: | PC9: Location: | QC9: Location: | RC9: Location: | SC9: Location:
C11: Notes: | AC11: Notes: | BC11: Notes: | CC11: Notes: | DC11: Notes: | EC11: Notes: | FC11: Notes: | GC11: Notes: | HC11: Notes: | IC11: Notes: | JC11: Notes: | KC11: Notes: | LC11: Notes: | MC11: Notes: | NC11: Notes: | OC11: Notes: | PC11: Notes: | QC11: Notes: | RC11: Notes: | SC11: Notes:
C18: Method Used for Flow Calculation: | J18: Method of Leak Discovery: | U18: Flow calculations are based on the rate tables in the AWWA Manual of Water Supply Practices M36 Water Audits and Loss Control Programs, Section 7. | AC18: Method Used for Flow Calculation: | AJ18: Method of Leak Discovery: | AU18: Flow calculations are based on the rate tables in the AWWA Manual of Water Supply Practices M36 Water Audits and Loss Control Programs, Section 7. | BC18: Method Used for Flow Calculation: | BJ18: Method of Leak Discovery: | BU18: Flow calculations are based on the rate tables in the AWWA Manual of Water Supply Practices M36 Water Audits and Loss Control Programs, Section 7. | CC18: Method Used for Flow Calculation: | CJ18: Method of Leak Discovery: | CU18: Flow calculations are based on the rate tables in the AWWA Manual of Water Supply Practices M36 Water Audits and Loss Control Programs, Section 7. | DC18: Method Used for Flow Calculation: | DJ18: Method of Leak Discovery: | DU18: Flow calculations are based on the rate tables in the AWWA Manual of Water Supply Practices M36 Water Audits and Loss Control Programs, Section 7. | EC18: Method Used for Flow Calculation: | EJ18: Method of Leak Discovery: | EU18: Flow calculations are based on the rate tables in the AWWA Manual of Water Supply Practices M36 Water Audits and Loss Control Programs, Section 7. | FC18: Method Used for Flow Calculation: | FJ18: Method of Leak Discovery: | FU18: Flow calculations are based on the rate tables in the AWWA Manual of Water Supply Practices M36 Water Audits and Loss Control Programs, Section 7. | GC18: Method Used for Flow Calculation: | GJ18: Method of Leak Discovery: | GU18: Flow calculations are based on the rate tables in the AWWA Manual of Water Supply Practices M36 Water Audits and Loss Control Programs, Section 7. | HC18: Method Used for Flow Calculation: | HJ18: Method of Leak Discovery: | HU18: Flow calculations are based on the rate tables in the AWWA Manual of Water Supply Practices M36 Water Audits and Loss Control Programs, Section 7. | IC18: Method Used for Flow Calculation: | IJ18: Method of Leak Discovery: | IU18: Flow calculations are based on the rate tables in the AWWA Manual of Water Supply Practices M36 Water Audits and Loss Control Programs, Section 7. | JC18: Method Used for Flow Calculation: | JJ18: Method of Leak Discovery: | JU18: Flow calculations are based on the rate tables in the AWWA Manual of Water Supply Practices M36 Water Audits and Loss Control Programs, Section 7. | KC18: Method Used for Flow Calculation: | KJ18: Method of Leak Discovery: | KU18: Flow calculations are based on the rate tables in the AWWA Manual of Water Supply Practices M36 Water Audits and Loss Control Programs, Section 7. | LC18: Method Used for Flow Calculation: | LJ18: Method of Leak Discovery: | LU18: Flow calculations are based on the rate tables in the AWWA Manual of Water Supply Practices M36 Water Audits and Loss Control Programs, Section 7. | MC18: Method Used for Flow Calculation: | MJ18: Method of Leak Discovery: | MU18: Flow calculations are based on the rate tables in the AWWA Manual of Water Supply Practices M36 Water Audits and Loss Control Programs, Section 7. | NC18: Method Used for Flow Calculation: | NJ18: Method of Leak Discovery: | NU18: Flow calculations are based on the rate tables in the AWWA Manual of Water Supply Practices M36 Water Audits and Loss Control Programs, Section 7. | OC18: Method Used for Flow Calculation: | OJ18: Method of Leak Discovery: | OU18: Flow calculations are based on the rate tables in the AWWA Manual of Water Supply Practices M36 Water Audits and Loss Control Programs, Section 7. | PC18: Method Used for Flow Calculation: | PJ18: Method of Leak Discovery: | PU18: Flow calculations are based on the rate tables in the AWWA Manual of Water Supply Practices M36 Water Audits and Loss Control Programs, Section 7. | QC18: Method Used for Flow Calculation: | QJ18: Method of Leak Discovery: | QU18: Flow calculations are based on the rate tables in the AWWA Manual of Water Supply Practices M36 Water Audits and Loss Control Programs, Section 7. | RC18: Method Used for Flow Calculation: | RJ18: Method of Leak Discovery: | RU18: Flow calculations are based on the rate tables in the AWWA Manual of Water Supply Practices M36 Water Audits and Loss Control Programs, Section 7. | SC18: Method Used for Flow Calculation: | SJ18: Method of Leak Discovery: | SU18: Flow calculations are based on the rate tables in the AWWA Manual of Water Supply Practices M36 Water Audits and Loss Control Programs, Section 7.
C21: Diameter of Hole | E21: Crack Width | G21: Crack Length | I21: Drips per Second | K21: 8 oz Cups per Minute | M21: Pipe Diameter | O21: System Pressure | R21: Calculated Flow Rate | AC21: Diameter of Hole | AE21: Crack Width | AG21: Crack Length | AI21: Drips per Second | AK21: 8 oz Cups per Minute | AM21: Pipe Diameter | AO21: System Pressure | AR21: Calculated Flow Rate | BC21: Diameter of Hole | BE21: Crack Width | BG21: Crack Length | BI21: Drips per Second | BK21: 8 oz Cups per Minute | BM21: Pipe Diameter | BO21: System Pressure | BR21: Calculated Flow Rate | CC21: Diameter of Hole | CE21: Crack Width | CG21: Crack Length | CI21: Drips per Second | CK21: 8 oz Cups per Minute | CM21: Pipe Diameter | CO21: System Pressure | CR21: Calculated Flow Rate | DC21: Diameter of Hole | DE21: Crack Width | DG21: Crack Length | DI21: Drips per Second | DK21: 8 oz Cups per Minute | DM21: Pipe Diameter | DO21: System Pressure | DR21: Calculated Flow Rate | EC21: Diameter of Hole | EE21: Crack Width | EG21: Crack Length | EI21: Drips per Second | EK21: 8 oz Cups per Minute | EM21: Pipe Diameter | EO21: System Pressure | ER21: Calculated Flow Rate | FC21: Diameter of Hole | FE21: Crack Width | FG21: Crack Length | FI21: Drips per Second | FK21: 8 oz Cups per Minute | FM21: Pipe Diameter | FO21: System Pressure | FR21: Calculated Flow Rate | GC21: Diameter of Hole | GE21: Crack Width | GG21: Crack Length | GI21: Drips per Second | GK21: 8 oz Cups per Minute | GM21: Pipe Diameter | GO21: System Pressure | GR21: Calculated Flow Rate | HC21: Diameter of Hole | HE21: Crack Width | HG21: Crack Length | HI21: Drips per Second | HK21: 8 oz Cups per Minute | HM21: Pipe Diameter | HO21: System Pressure | HR21: Calculated Flow Rate | IC21: Diameter of Hole | IE21: Crack Width | IG21: Crack Length | II21: Drips per Second | IK21: 8 oz Cups per Minute | IM21: Pipe Diameter | IO21: System Pressure | IR21: Calculated Flow Rate | JC21: Diameter of Hole | JE21: Crack Width | JG21: Crack Length | JI21: Drips per Second | JK21: 8 oz Cups per Minute | JM21: Pipe Diameter | JO21: System Pressure | JR21: Calculated Flow Rate | KC21: Diameter of Hole | KE21: Crack Width | KG21: Crack Length | KI21: Drips per Second | KK21: 8 oz Cups per Minute | KM21: Pipe Diameter | KO21: System Pressure | KR21: Calculated Flow Rate | LC21: Diameter of Hole | LE21: Crack Width | LG21: Crack Length | LI21: Drips per Second | LK21: 8 oz Cups per Minute | LM21: Pipe Diameter | LO21: System Pressure | LR21: Calculated Flow Rate | MC21: Diameter of Hole | ME21: Crack Width | MG21: Crack Length | MI21: Drips per Second | MK21: 8 oz Cups per Minute | MM21: Pipe Diameter | MO21: System Pressure | MR21: Calculated Flow Rate | NC21: Diameter of Hole | NE21: Crack Width | NG21: Crack Length | NI21: Drips per Second | NK21: 8 oz Cups per Minute | NM21: Pipe Diameter | NO21: System Pressure | NR21: Calculated Flow Rate | OC21: Diameter of Hole | OE21: Crack Width | OG21: Crack Length | OI21: Drips per Second | OK21: 8 oz Cups per Minute | OM21: Pipe Diameter | OO21: System Pressure | OR21: Calculated Flow Rate | PC21: Diameter of Hole | PE21: Crack Width | PG21: Crack Length | PI21: Drips per Second | PK21: 8 oz Cups per Minute | PM21: Pipe Diameter | PO21: System Pressure | PR21: Calculated Flow Rate | QC21: Diameter of Hole | QE21: Crack Width | QG21: Crack Length | QI21: Drips per Second | QK21: 8 oz Cups per Minute | QM21: Pipe Diameter | QO21: System Pressure | QR21: Calculated Flow Rate | RC21: Diameter of Hole | RE21: Crack Width | RG21: Crack Length | RI21: Drips per Second | RK21: 8 oz Cups per Minute | RM21: Pipe Diameter | RO21: System Pressure | RR21: Calculated Flow Rate | SC21: Diameter of Hole | SE21: Crack Width | SG21: Crack Length | SI21: Drips per Second | SK21: 8 oz Cups per Minute | SM21: Pipe Diameter | SO21: System Pressure | SR21: Calculated Flow Rate
C23: [in] | E23: [in] | G23: [in] | M23: [in] | O23: [psig] | R23: [gpm] | AC23: [in] | AE23: [in] | AG23: [in] | AM23: [in] | AO23: [psig] | AR23: [gpm] | BC23: [in] | BE23: [in] | BG23: [in] | BM23: [in] | BO23: [psig] | BR23: [gpm] | CC23: [in] | CE23: [in] | CG23: [in] | CM23: [in] | CO23: [psig] | CR23: [gpm] | DC23: [in] | DE23: [in] | DG23: [in] | DM23: [in] | DO23: [psig] | DR23: [gpm] | EC23: [in] | EE23: [in] | EG23: [in] | EM23: [in] | EO23: [psig] | ER23: [gpm] | FC23: [in] | FE23: [in] | FG23: [in] | FM23: [in] | FO23: [psig] | FR23: [gpm] | GC23: [in] | GE23: [in] | GG23: [in] | GM23: [in] | GO23: [psig] | GR23: [gpm] | HC23: [in] | HE23: [in] | HG23: [in] | HM23: [in] | HO23: [psig] | HR23: [gpm] | IC23: [in] | IE23: [in] | IG23: [in] | IM23: [in] | IO23: [psig] | IR23: [gpm] | JC23: [in] | JE23: [in] | JG23: [in] | JM23: [in] | JO23: [psig] | JR23: [gpm] | KC23: [in] | KE23: [in] | KG23: [in] | KM23: [in] | KO23: [psig] | KR23: [gpm] | LC23: [in] | LE23: [in] | LG23: [in] | LM23: [in] | LO23: [psig] | LR23: [gpm] | MC23: [in] | ME23: [in] | MG23: [in] | MM23: [in] | MO23: [psig] | MR23: [gpm] | NC23: [in] | NE23: [in] | NG23: [in] | NM23: [in] | NO23: [psig] | NR23: [gpm] | OC23: [in] | OE23: [in] | OG23: [in] | OM23: [in] | OO23: [psig] | OR23: [gpm] | PC23: [in] | PE23: [in] | PG23: [in] | PM23: [in] | PO23: [psig] | PR23: [gpm] | QC23: [in] | QE23: [in] | QG23: [in] | QM23: [in] | QO23: [psig] | QR23: [gpm] | RC23: [in] | RE23: [in] | RG23: [in] | RM23: [in] | RO23: [psig] | RR23: [gpm] | SC23: [in] | SE23: [in] | SG23: [in] | SM23: [in] | SO23: [psig] | SR23: [gpm]
R24: ='Savings Summary'!X43 ->  | AR24: ='Savings Summary'!X44 ->  | BR24: ='Savings Summary'!X45 ->  | CR24: ='Savings Summary'!X46 ->  | DR24: ='Savings Summary'!X47 ->  | ER24: ='Savings Summary'!X48 ->  | FR24: ='Savings Summary'!X49 ->  | GR24: ='Savings Summary'!X50 ->  | HR24: ='Savings Summary'!X51 ->  | IR24: ='Savings Summary'!X52 ->  | JR24: ='Savings Summary'!X53 ->  | KR24: ='Savings Summary'!X54 ->  | LR24: ='Savings Summary'!X55 ->  | MR24: ='Savings Summary'!X56 ->  | NR24: ='Savings Summary'!X57 ->  | OR24: ='Savings Summary'!X58 ->  | PR24: ='Savings Summary'!X59 ->  | QR24: ='Savings Summary'!X60 ->  | RR24: ='Savings Summary'!X61 ->  | SR24: ='Savings Summary'!X62 -> 
C26: Costs | AC26: Costs | BC26: Costs | CC26: Costs | DC26: Costs | EC26: Costs | FC26: Costs | GC26: Costs | HC26: Costs | IC26: Costs | JC26: Costs | KC26: Costs | LC26: Costs | MC26: Costs | NC26: Costs | OC26: Costs | PC26: Costs | QC26: Costs | RC26: Costs | SC26: Costs
C28: Supplier | F28: Invoice # | I28: Description | L28: Unit Cost | O28: Quantity | Q28: Combined Cost | T28: Tax | W28: Total | AC28: Supplier | AF28: Invoice # | AI28: Description | AL28: Unit Cost | AO28: Quantity | AQ28: Combined Cost | AT28: Tax | AW28: Total | BC28: Supplier | BF28: Invoice # | BI28: Description | BL28: Unit Cost | BO28: Quantity | BQ28: Combined Cost | BT28: Tax | BW28: Total | CC28: Supplier | CF28: Invoice # | CI28: Description | CL28: Unit Cost | CO28: Quantity | CQ28: Combined Cost | CT28: Tax | CW28: Total | DC28: Supplier | DF28: Invoice # | DI28: Description | DL28: Unit Cost | DO28: Quantity | DQ28: Combined Cost | DT28: Tax | DW28: Total | EC28: Supplier | EF28: Invoice # | EI28: Description | EL28: Unit Cost | EO28: Quantity | EQ28: Combined Cost | ET28: Tax | EW28: Total | FC28: Supplier | FF28: Invoice # | FI28: Description | FL28: Unit Cost | FO28: Quantity | FQ28: Combined Cost | FT28: Tax | FW28: Total | GC28: Supplier | GF28: Invoice # | GI28: Description | GL28: Unit Cost | GO28: Quantity | GQ28: Combined Cost | GT28: Tax | GW28: Total | HC28: Supplier | HF28: Invoice # | HI28: Description | HL28: Unit Cost | HO28: Quantity | HQ28: Combined Cost | HT28: Tax | HW28: Total | IC28: Supplier | IF28: Invoice # | II28: Description | IL28: Unit Cost | IO28: Quantity | IQ28: Combined Cost | IT28: Tax | IW28: Total | JC28: Supplier | JF28: Invoice # | JI28: Description | JL28: Unit Cost | JO28: Quantity | JQ28: Combined Cost | JT28: Tax | JW28: Total | KC28: Supplier | KF28: Invoice # | KI28: Description | KL28: Unit Cost | KO28: Quantity | KQ28: Combined Cost | KT28: Tax | KW28: Total | LC28: Supplier | LF28: Invoice # | LI28: Description | LL28: Unit Cost | LO28: Quantity | LQ28: Combined Cost | LT28: Tax | LW28: Total | MC28: Supplier | MF28: Invoice # | MI28: Description | ML28: Unit Cost | MO28: Quantity | MQ28: Combined Cost | MT28: Tax | MW28: Total | NC28: Supplier | NF28: Invoice # | NI28: Description | NL28: Unit Cost | NO28: Quantity | NQ28: Combined Cost | NT28: Tax | NW28: Total | OC28: Supplier | OF28: Invoice # | OI28: Description | OL28: Unit Cost | OO28: Quantity | OQ28: Combined Cost | OT28: Tax | OW28: Total | PC28: Supplier | PF28: Invoice # | PI28: Description | PL28: Unit Cost | PO28: Quantity | PQ28: Combined Cost | PT28: Tax | PW28: Total | QC28: Supplier | QF28: Invoice # | QI28: Description | QL28: Unit Cost | QO28: Quantity | QQ28: Combined Cost | QT28: Tax | QW28: Total | RC28: Supplier | RF28: Invoice # | RI28: Description | RL28: Unit Cost | RO28: Quantity | RQ28: Combined Cost | RT28: Tax | RW28: Total | SC28: Supplier | SF28: Invoice # | SI28: Description | SL28: Unit Cost | SO28: Quantity | SQ28: Combined Cost | ST28: Tax | SW28: Total
Q29: =IF(L29>0,O29*L29,"") ->  | W29: =IFERROR(Q29+T29,"") ->  | AQ29: =IF(AL29>0,AO29*AL29,"") ->  | AW29: =IFERROR(AQ29+AT29,"") ->  | BQ29: =IF(BL29>0,BO29*BL29,"") ->  | BW29: =IFERROR(BQ29+BT29,"") ->  | CQ29: =IF(CL29>0,CO29*CL29,"") ->  | CW29: =IFERROR(CQ29+CT29,"") ->  | DQ29: =IF(DL29>0,DO29*DL29,"") ->  | DW29: =IFERROR(DQ29+DT29,"") ->  | EQ29: =IF(EL29>0,EO29*EL29,"") ->  | EW29: =IFERROR(EQ29+ET29,"") ->  | FQ29: =IF(FL29>0,FO29*FL29,"") ->  | FW29: =IFERROR(FQ29+FT29,"") ->  | GQ29: =IF(GL29>0,GO29*GL29,"") ->  | GW29: =IFERROR(GQ29+GT29,"") ->  | HQ29: =IF(HL29>0,HO29*HL29,"") ->  | HW29: =IFERROR(HQ29+HT29,"") ->  | IQ29: =IF(IL29>0,IO29*IL29,"") ->  | IW29: =IFERROR(IQ29+IT29,"") ->  | JQ29: =IF(JL29>0,JO29*JL29,"") ->  | JW29: =IFERROR(JQ29+JT29,"") ->  | KQ29: =IF(KL29>0,KO29*KL29,"") ->  | KW29: =IFERROR(KQ29+KT29,"") ->  | LQ29: =IF(LL29>0,LO29*LL29,"") ->  | LW29: =IFERROR(LQ29+LT29,"") ->  | MQ29: =IF(ML29>0,MO29*ML29,"") ->  | MW29: =IFERROR(MQ29+MT29,"") ->  | NQ29: =IF(NL29>0,NO29*NL29,"") ->  | NW29: =IFERROR(NQ29+NT29,"") ->  | OQ29: =IF(OL29>0,OO29*OL29,"") ->  | OW29: =IFERROR(OQ29+OT29,"") ->  | PQ29: =IF(PL29>0,PO29*PL29,"") ->  | PW29: =IFERROR(PQ29+PT29,"") ->  | QQ29: =IF(QL29>0,QO29*QL29,"") ->  | QW29: =IFERROR(QQ29+QT29,"") ->  | RQ29: =IF(RL29>0,RO29*RL29,"") ->  | RW29: =IFERROR(RQ29+RT29,"") ->  | SQ29: =IF(SL29>0,SO29*SL29,"") ->  | SW29: =IFERROR(SQ29+ST29,"") -> 
Q30: =IF(L30>0,O30*L30,"") ->  | W30: =IFERROR(Q30+T30,"") ->  | AQ30: =IF(AL30>0,AO30*AL30,"") ->  | AW30: =IFERROR(AQ30+AT30,"") ->  | BQ30: =IF(BL30>0,BO30*BL30,"") ->  | BW30: =IFERROR(BQ30+BT30,"") ->  | CQ30: =IF(CL30>0,CO30*CL30,"") ->  | CW30: =IFERROR(CQ30+CT30,"") ->  | DQ30: =IF(DL30>0,DO30*DL30,"") ->  | DW30: =IFERROR(DQ30+DT30,"") ->  | EQ30: =IF(EL30>0,EO30*EL30,"") ->  | EW30: =IFERROR(EQ30+ET30,"") ->  | FQ30: =IF(FL30>0,FO30*FL30,"") ->  | FW30: =IFERROR(FQ30+FT30,"") ->  | GQ30: =IF(GL30>0,GO30*GL30,"") ->  | GW30: =IFERROR(GQ30+GT30,"") ->  | HQ30: =IF(HL30>0,HO30*HL30,"") ->  | HW30: =IFERROR(HQ30+HT30,"") ->  | IQ30: =IF(IL30>0,IO30*IL30,"") ->  | IW30: =IFERROR(IQ30+IT30,"") ->  | JQ30: =IF(JL30>0,JO30*JL30,"") ->  | JW30: =IFERROR(JQ30+JT30,"") ->  | KQ30: =IF(KL30>0,KO30*KL30,"") ->  | KW30: =IFERROR(KQ30+KT30,"") ->  | LQ30: =IF(LL30>0,LO30*LL30,"") ->  | LW30: =IFERROR(LQ30+LT30,"") ->  | MQ30: =IF(ML30>0,MO30*ML30,"") ->  | MW30: =IFERROR(MQ30+MT30,"") ->  | NQ30: =IF(NL30>0,NO30*NL30,"") ->  | NW30: =IFERROR(NQ30+NT30,"") ->  | OQ30: =IF(OL30>0,OO30*OL30,"") ->  | OW30: =IFERROR(OQ30+OT30,"") ->  | PQ30: =IF(PL30>0,PO30*PL30,"") ->  | PW30: =IFERROR(PQ30+PT30,"") ->  | QQ30: =IF(QL30>0,QO30*QL30,"") ->  | QW30: =IFERROR(QQ30+QT30,"") ->  | RQ30: =IF(RL30>0,RO30*RL30,"") ->  | SQ30: =IF(SL30>0,SO30*SL30,"") -> 
W31: =IFERROR(Q31+T31,"") ->  | AW31: =IFERROR(AQ31+AT31,"") ->  | BW31: =IFERROR(BQ31+BT31,"") ->  | CW31: =IFERROR(CQ31+CT31,"") ->  | DW31: =IFERROR(DQ31+DT31,"") ->  | EW31: =IFERROR(EQ31+ET31,"") ->  | FW31: =IFERROR(FQ31+FT31,"") ->  | GW31: =IFERROR(GQ31+GT31,"") ->  | HW31: =IFERROR(HQ31+HT31,"") ->  | IW31: =IFERROR(IQ31+IT31,"") ->  | JW31: =IFERROR(JQ31+JT31,"") ->  | KW31: =IFERROR(KQ31+KT31,"") ->  | LW31: =IFERROR(LQ31+LT31,"") ->  | MW31: =IFERROR(MQ31+MT31,"") ->  | NW31: =IFERROR(NQ31+NT31,"") ->  | OW31: =IFERROR(OQ31+OT31,"") ->  | PW31: =IFERROR(PQ31+PT31,"") ->  | QW31: =IFERROR(QQ31+QT31,"") -> 
W32: =IFERROR(Q32+T32,"") ->  | AW32: =IFERROR(AQ32+AT32,"") ->  | BW32: =IFERROR(BQ32+BT32,"") ->  | CW32: =IFERROR(CQ32+CT32,"") ->  | DW32: =IFERROR(DQ32+DT32,"") ->  | EW32: =IFERROR(EQ32+ET32,"") ->  | FW32: =IFERROR(FQ32+FT32,"") ->  | GW32: =IFERROR(GQ32+GT32,"") ->  | HW32: =IFERROR(HQ32+HT32,"") ->  | IW32: =IFERROR(IQ32+IT32,"") ->  | JW32: =IFERROR(JQ32+JT32,"") ->  | KW32: =IFERROR(KQ32+KT32,"") ->  | LW32: =IFERROR(LQ32+LT32,"") ->  | MW32: =IFERROR(MQ32+MT32,"") ->  | NW32: =IFERROR(NQ32+NT32,"") ->  | OW32: =IFERROR(OQ32+OT32,"") ->  | PW32: =IFERROR(PQ32+PT32,"") ->  | QW32: =IFERROR(QQ32+QT32,"") -> 
W33: =IFERROR(Q33+T33,"") ->  | AW33: =IFERROR(AQ33+AT33,"") ->  | BW33: =IFERROR(BQ33+BT33,"") ->  | CW33: =IFERROR(CQ33+CT33,"") ->  | DW33: =IFERROR(DQ33+DT33,"") ->  | EW33: =IFERROR(EQ33+ET33,"") ->  | FW33: =IFERROR(FQ33+FT33,"") ->  | GW33: =IFERROR(GQ33+GT33,"") ->  | HW33: =IFERROR(HQ33+HT33,"") ->  | IW33: =IFERROR(IQ33+IT33,"") ->  | JW33: =IFERROR(JQ33+JT33,"") ->  | KW33: =IFERROR(KQ33+KT33,"") ->  | LW33: =IFERROR(LQ33+LT33,"") ->  | MW33: =IFERROR(MQ33+MT33,"") ->  | NW33: =IFERROR(NQ33+NT33,"") ->  | OW33: =IFERROR(OQ33+OT33,"") ->  | PW33: =IFERROR(PQ33+PT33,"") ->  | QW33: =IFERROR(QQ33+QT33,"") -> 
W34: =IFERROR(Q34+T34,"") ->  | AW34: =IFERROR(AQ34+AT34,"") ->  | BW34: =IFERROR(BQ34+BT34,"") ->  | CW34: =IFERROR(CQ34+CT34,"") ->  | DW34: =IFERROR(DQ34+DT34,"") ->  | EW34: =IFERROR(EQ34+ET34,"") ->  | FW34: =IFERROR(FQ34+FT34,"") ->  | GW34: =IFERROR(GQ34+GT34,"") ->  | HW34: =IFERROR(HQ34+HT34,"") ->  | IW34: =IFERROR(IQ34+IT34,"") ->  | JW34: =IFERROR(JQ34+JT34,"") ->  | KW34: =IFERROR(KQ34+KT34,"") ->  | LW34: =IFERROR(LQ34+LT34,"") ->  | MW34: =IFERROR(MQ34+MT34,"") ->  | NW34: =IFERROR(NQ34+NT34,"") ->  | OW34: =IFERROR(OQ34+OT34,"") ->  | PW34: =IFERROR(PQ34+PT34,"") ->  | QW34: =IFERROR(QQ34+QT34,"") -> 
Q38: =IF(L38>0,O38*L38,"") ->  | W38: =IFERROR(Q38+T38,"") ->  | RQ38: =IF(RL38>0,RO38*RL38,"") ->  | SQ38: =IF(SL38>0,SO38*SL38,"") -> 
RQ39: =IF(RL39>0,RO39*RL39,"") ->  | SQ39: =IF(SL39>0,SO39*SL39,"") -> 
RQ40: =IF(RL40>0,RO40*RL40,"") ->  | SQ40: =IF(SL40>0,SO40*SL40,"") -> 
T41: Total | W41: =SUM(W29:Y40) -> 0 | AT41: Total | AW41: =SUM(AW29:AY40) -> 0 | BT41: Total | BW41: =SUM(BW29:BY40) -> 0 | CT41: Total | CW41: =SUM(CW29:CY40) -> 0 | DT41: Total | DW41: =SUM(DW29:DY40) -> 0 | ET41: Total | EW41: =SUM(EW29:EY40) -> 0 | FT41: Total | FW41: =SUM(FW29:FY40) -> 0 | GT41: Total | GW41: =SUM(GW29:GY40) -> 0 | HT41: Total | HW41: =SUM(HW29:HY40) -> 0 | IT41: Total | IW41: =SUM(IW29:IY40) -> 0 | JT41: Total | JW41: =SUM(JW29:JY40) -> 0 | KT41: Total | KW41: =SUM(KW29:KY40) -> 0 | LT41: Total | LW41: =SUM(LW29:LY40) -> 0 | MT41: Total | MW41: =SUM(MW29:MY40) -> 0 | NT41: Total | NW41: =SUM(NW29:NY40) -> 0 | OT41: Total | OW41: =SUM(OW29:OY40) -> 0 | PT41: Total | PW41: =SUM(PW29:PY40) -> 0 | QT41: Total | QW41: =SUM(QW29:QY40) -> 0 | RT41: Total | RW41: =SUM(RW29:RY40) -> 0 | ST41: Total | SW41: =SUM(SW29:SY40) -> 0
C43: Photos | AC43: Photos | BC43: Photos | CC43: Photos | DC43: Photos | EC43: Photos | FC43: Photos | GC43: Photos | HC43: Photos | IC43: Photos | JC43: Photos | KC43: Photos | LC43: Photos | MC43: Photos | NC43: Photos | OC43: Photos | PC43: Photos | QC43: Photos | RC43: Photos | SC43: Photos
B74: =" Cascade Energy, Inc. © "&YEAR(TODAY())& " " -> Cascade Energy, Inc. © 2021 | Z74: =ToolName&" v"&ToolVersion & " " -> Leak Abatement Energy Savings Tool v2.4 | AB74: =" Cascade Energy, Inc. © "&YEAR(TODAY())& " " -> Cascade Energy, Inc. © 2021 | AZ74: =ToolName&" v"&ToolVersion & " " -> Leak Abatement Energy Savings Tool v2.4 | BB74: =" Cascade Energy, Inc. © "&YEAR(TODAY())& " " -> Cascade Energy, Inc. © 2021 | BZ74: =ToolName&" v"&ToolVersion & " " -> Leak Abatement Energy Savings Tool v2.4 | CB74: =" Cascade Energy, Inc. © "&YEAR(TODAY())& " " -> Cascade Energy, Inc. © 2021 | CZ74: =ToolName&" v"&ToolVersion & " " -> Leak Abatement Energy Savings Tool v2.4 | DB74: =" Cascade Energy, Inc. © "&YEAR(TODAY())& " " -> Cascade Energy, Inc. © 2021 | DZ74: =ToolName&" v"&ToolVersion & " " -> Leak Abatement Energy Savings Tool v2.4 | EB74: =" Cascade Energy, Inc. © "&YEAR(TODAY())& " " -> Cascade Energy, Inc. © 2021 | EZ74: =ToolName&" v"&ToolVersion & " " -> Leak Abatement Energy Savings Tool v2.4 | FB74: =" Cascade Energy, Inc. © "&YEAR(TODAY())& " " -> Cascade Energy, Inc. © 2021 | FZ74: =ToolName&" v"&ToolVersion & " " -> Leak Abatement Energy Savings Tool v2.4 | GB74: =" Cascade Energy, Inc. © "&YEAR(TODAY())& " " -> Cascade Energy, Inc. © 2021 | GZ74: =ToolName&" v"&ToolVersion & " " -> Leak Abatement Energy Savings Tool v2.4 | HB74: =" Cascade Energy, Inc. © "&YEAR(TODAY())& " " -> Cascade Energy, Inc. © 2021 | HZ74: =ToolName&" v"&ToolVersion & " " -> Leak Abatement Energy Savings Tool v2.4 | IB74: =" Cascade Energy, Inc. © "&YEAR(TODAY())& " " -> Cascade Energy, Inc. © 2021 | IZ74: =ToolName&" v"&ToolVersion & " " -> Leak Abatement Energy Savings Tool v2.4 | JB74: =" Cascade Energy, Inc. © "&YEAR(TODAY())& " " -> Cascade Energy, Inc. © 2021 | JZ74: =ToolName&" v"&ToolVersion & " " -> Leak Abatement Energy Savings Tool v2.4 | KB74: =" Cascade Energy, Inc. © "&YEAR(TODAY())& " " -> Cascade Energy, Inc. © 2021 | KZ74: =ToolName&" v"&ToolVersion & " " -> Leak Abatement Energy Savings Tool v2.4 | LB74: =" Cascade Energy, Inc. © "&YEAR(TODAY())& " " -> Cascade Energy, Inc. © 2021 | LZ74: =ToolName&" v"&ToolVersion & " " -> Leak Abatement Energy Savings Tool v2.4 | MB74: =" Cascade Energy, Inc. © "&YEAR(TODAY())& " " -> Cascade Energy, Inc. © 2021 | MZ74: =ToolName&" v"&ToolVersion & " " -> Leak Abatement Energy Savings Tool v2.4 | NB74: =" Cascade Energy, Inc. © "&YEAR(TODAY())& " " -> Cascade Energy, Inc. © 2021 | NZ74: =ToolName&" v"&ToolVersion & " " -> Leak Abatement Energy Savings Tool v2.4 | OB74: =" Cascade Energy, Inc. © "&YEAR(TODAY())& " " -> Cascade Energy, Inc. © 2021 | OZ74: =ToolName&" v"&ToolVersion & " " -> Leak Abatement Energy Savings Tool v2.4 | PB74: =" Cascade Energy, Inc. © "&YEAR(TODAY())& " " -> Cascade Energy, Inc. © 2021 | PZ74: =ToolName&" v"&ToolVersion & " " -> Leak Abatement Energy Savings Tool v2.4 | QB74: =" Cascade Energy, Inc. © "&YEAR(TODAY())& " " -> Cascade Energy, Inc. © 2021 | QZ74: =ToolName&" v"&ToolVersion & " " -> Leak Abatement Energy Savings Tool v2.4 | RB74: =" Cascade Energy, Inc. © "&YEAR(TODAY())& " " -> Cascade Energy, Inc. © 2021 | RZ74: =ToolName&" v"&ToolVersion & " " -> Leak Abatement Energy Savings Tool v2.4 | SB74: =" Cascade Energy, Inc. © "&YEAR(TODAY())& " " -> Cascade Energy, Inc. © 2021 | SZ74: =ToolName&" v"&ToolVersion & " " -> Leak Abatement Energy Savings Tool v2.4
B76: 1 | AB76: 2 | BB76: =AB76+1 -> 3 | CB76: =BB76+1 -> 4 | DB76: =CB76+1 -> 5 | EB76: =DB76+1 -> 6 | FB76: =EB76+1 -> 7 | GB76: =FB76+1 -> 8 | HB76: =GB76+1 -> 9 | IB76: =HB76+1 -> 10 | JB76: =IB76+1 -> 11 | KB76: =JB76+1 -> 12 | LB76: =KB76+1 -> 13 | MB76: =LB76+1 -> 14 | NB76: =MB76+1 -> 15 | OB76: =NB76+1 -> 16 | PB76: =OB76+1 -> 17 | QB76: =PB76+1 -> 18 | RB76: =QB76+1 -> 19 | SB76: =RB76+1 -> 20
C79: Diameter of Hole | E79: Crack Width | G79: Crack Length | I79: Drips per Second | K79: 8 oz Cups per Minute | M79: Pipe Diameter | O79: System Pressure | AC79: Diameter of Hole | AE79: Crack Width | AG79: Crack Length | AI79: Drips per Second | AK79: 8 oz Cups per Minute | AM79: Pipe Diameter | AO79: System Pressure | BC79: Diameter of Hole | BE79: Crack Width | BG79: Crack Length | BI79: Drips per Second | BK79: 8 oz Cups per Minute | BM79: Pipe Diameter | BO79: System Pressure | CC79: Diameter of Hole | CE79: Crack Width | CG79: Crack Length | CI79: Drips per Second | CK79: 8 oz Cups per Minute | CM79: Pipe Diameter | CO79: System Pressure | DC79: Diameter of Hole | DE79: Crack Width | DG79: Crack Length | DI79: Drips per Second | DK79: 8 oz Cups per Minute | DM79: Pipe Diameter | DO79: System Pressure | EC79: Diameter of Hole | EE79: Crack Width | EG79: Crack Length | EI79: Drips per Second | EK79: 8 oz Cups per Minute | EM79: Pipe Diameter | EO79: System Pressure | FC79: Diameter of Hole | FE79: Crack Width | FG79: Crack Length | FI79: Drips per Second | FK79: 8 oz Cups per Minute | FM79: Pipe Diameter | FO79: System Pressure | GC79: Diameter of Hole | GE79: Crack Width | GG79: Crack Length | GI79: Drips per Second | GK79: 8 oz Cups per Minute | GM79: Pipe Diameter | GO79: System Pressure | HC79: Diameter of Hole | HE79: Crack Width | HG79: Crack Length | HI79: Drips per Second | HK79: 8 oz Cups per Minute | HM79: Pipe Diameter | HO79: System Pressure | IC79: Diameter of Hole | IE79: Crack Width | IG79: Crack Length | II79: Drips per Second | IK79: 8 oz Cups per Minute | IM79: Pipe Diameter | IO79: System Pressure | JC79: Diameter of Hole | JE79: Crack Width | JG79: Crack Length | JI79: Drips per Second | JK79: 8 oz Cups per Minute | JM79: Pipe Diameter | JO79: System Pressure | KC79: Diameter of Hole | KE79: Crack Width | KG79: Crack Length | KI79: Drips per Second | KK79: 8 oz Cups per Minute | KM79: Pipe Diameter | KO79: System Pressure | LC79: Diameter of Hole | LE79: Crack Width | LG79: Crack Length | LI79: Drips per Second | LK79: 8 oz Cups per Minute | LM79: Pipe Diameter | LO79: System Pressure | MC79: Diameter of Hole | ME79: Crack Width | MG79: Crack Length | MI79: Drips per Second | MK79: 8 oz Cups per Minute | MM79: Pipe Diameter | MO79: System Pressure | NC79: Diameter of Hole | NE79: Crack Width | NG79: Crack Length | NI79: Drips per Second | NK79: 8 oz Cups per Minute | NM79: Pipe Diameter | NO79: System Pressure | OC79: Diameter of Hole | OE79: Crack Width | OG79: Crack Length | OI79: Drips per Second | OK79: 8 oz Cups per Minute | OM79: Pipe Diameter | OO79: System Pressure | PC79: Diameter of Hole | PE79: Crack Width | PG79: Crack Length | PI79: Drips per Second | PK79: 8 oz Cups per Minute | PM79: Pipe Diameter | PO79: System Pressure | QC79: Diameter of Hole | QE79: Crack Width | QG79: Crack Length | QI79: Drips per Second | QK79: 8 oz Cups per Minute | QM79: Pipe Diameter | QO79: System Pressure | RC79: Diameter of Hole | RE79: Crack Width | RG79: Crack Length | RI79: Drips per Second | RK79: 8 oz Cups per Minute | RM79: Pipe Diameter | RO79: System Pressure | SC79: Diameter of Hole | SE79: Crack Width | SG79: Crack Length | SI79: Drips per Second | SK79: 8 oz Cups per Minute | SM79: Pipe Diameter | SO79: System Pressure
C81: ='Savings Summary'!AT43 ->  | E81: ='Savings Summary'!AV43 ->  | G81: ='Savings Summary'!AX43 ->  | I81: ='Savings Summary'!AZ43 ->  | K81: ='Savings Summary'!BB43 ->  | M81: ='Savings Summary'!BD43 ->  | O81: ='Savings Summary'!BF43 ->  | AC81: ='Savings Summary'!AT44 ->  | AE81: ='Savings Summary'!AV44 ->  | AG81: ='Savings Summary'!AX44 ->  | AI81: ='Savings Summary'!AZ44 ->  | AK81: ='Savings Summary'!BB44 ->  | AM81: ='Savings Summary'!BD44 ->  | AO81: ='Savings Summary'!BF44 ->  | BC81: ='Savings Summary'!AT45 ->  | BE81: ='Savings Summary'!AV45 ->  | BG81: ='Savings Summary'!AX45 ->  | BI81: ='Savings Summary'!AZ45 ->  | BK81: ='Savings Summary'!BB45 ->  | BM81: ='Savings Summary'!BD45 ->  | BO81: ='Savings Summary'!BF45 ->  | CC81: ='Savings Summary'!AT46 ->  | CE81: ='Savings Summary'!AV46 ->  | CG81: ='Savings Summary'!AX46 ->  | CI81: ='Savings Summary'!AZ46 ->  | CK81: ='Savings Summary'!BB46 ->  | CM81: ='Savings Summary'!BD46 ->  | CO81: ='Savings Summary'!BF46 ->  | DC81: ='Savings Summary'!AT47 ->  | DE81: ='Savings Summary'!AV47 ->  | DG81: ='Savings Summary'!AX47 ->  | DI81: ='Savings Summary'!AZ47 ->  | DK81: ='Savings Summary'!BB47 ->  | DM81: ='Savings Summary'!BD47 ->  | DO81: ='Savings Summary'!BF47 ->  | EC81: ='Savings Summary'!AT48 ->  | EE81: ='Savings Summary'!AV48 ->  | EG81: ='Savings Summary'!AX48 ->  | EI81: ='Savings Summary'!AZ48 ->  | EK81: ='Savings Summary'!BB48 ->  | EM81: ='Savings Summary'!BD48 ->  | EO81: ='Savings Summary'!BF48 ->  | FC81: ='Savings Summary'!AT49 ->  | FE81: ='Savings Summary'!AV49 ->  | FG81: ='Savings Summary'!AX49 ->  | FI81: ='Savings Summary'!AZ49 ->  | FK81: ='Savings Summary'!BB49 ->  | FM81: ='Savings Summary'!BD49 ->  | FO81: ='Savings Summary'!BF49 ->  | GC81: ='Savings Summary'!AT50 ->  | GE81: ='Savings Summary'!AV50 ->  | GG81: ='Savings Summary'!AX50 ->  | GI81: ='Savings Summary'!AZ50 ->  | GK81: ='Savings Summary'!BB50 ->  | GM81: ='Savings Summary'!BD50 ->  | GO81: ='Savings Summary'!BF50 ->  | HC81: ='Savings Summary'!AT51 ->  | HE81: ='Savings Summary'!AV51 ->  | HG81: ='Savings Summary'!AX51 ->  | HI81: ='Savings Summary'!AZ51 ->  | HK81: ='Savings Summary'!BB51 ->  | HM81: ='Savings Summary'!BD51 ->  | HO81: ='Savings Summary'!BF51 ->  | IC81: ='Savings Summary'!AT52 ->  | IE81: ='Savings Summary'!AV52 ->  | IG81: ='Savings Summary'!AX52 ->  | II81: ='Savings Summary'!AZ52 ->  | IK81: ='Savings Summary'!BB52 ->  | IM81: ='Savings Summary'!BD52 ->  | IO81: ='Savings Summary'!BF52 ->  | JC81: ='Savings Summary'!AT53 ->  | JE81: ='Savings Summary'!AV53 ->  | JG81: ='Savings Summary'!AX53 ->  | JI81: ='Savings Summary'!AZ53 ->  | JK81: ='Savings Summary'!BB53 ->  | JM81: ='Savings Summary'!BD53 ->  | JO81: ='Savings Summary'!BF53 ->  | KC81: ='Savings Summary'!AT54 ->  | KE81: ='Savings Summary'!AV54 ->  | KG81: ='Savings Summary'!AX54 ->  | KI81: ='Savings Summary'!AZ54 ->  | KK81: ='Savings Summary'!BB54 ->  | KM81: ='Savings Summary'!BD54 ->  | KO81: ='Savings Summary'!BF54 ->  | LC81: ='Savings Summary'!AT55 ->  | LE81: ='Savings Summary'!AV55 ->  | LG81: ='Savings Summary'!AX55 ->  | LI81: ='Savings Summary'!AZ55 ->  | LK81: ='Savings Summary'!BB55 ->  | LM81: ='Savings Summary'!BD55 ->  | LO81: ='Savings Summary'!BF55 ->  | MC81: ='Savings Summary'!AT56 ->  | ME81: ='Savings Summary'!AV56 ->  | MG81: ='Savings Summary'!AX56 ->  | MI81: ='Savings Summary'!AZ56 ->  | MK81: ='Savings Summary'!BB56 ->  | MM81: ='Savings Summary'!BD56 ->  | MO81: ='Savings Summary'!BF56 ->  | NC81: ='Savings Summary'!AT57 ->  | NE81: ='Savings Summary'!AV57 ->  | NG81: ='Savings Summary'!AX57 ->  | NI81: ='Savings Summary'!AZ57 ->  | NK81: ='Savings Summary'!BB57 ->  | NM81: ='Savings Summary'!BD57 ->  | NO81: ='Savings Summary'!BF57 ->  | OC81: ='Savings Summary'!AT58 ->  | OE81: ='Savings Summary'!AV58 ->  | OG81: ='Savings Summary'!AX58 ->  | OI81: ='Savings Summary'!AZ58 ->  | OK81: ='Savings Summary'!BB58 ->  | OM81: ='Savings Summary'!BD58 ->  | OO81: ='Savings Summary'!BF58 ->  | PC81: ='Savings Summary'!AT59 ->  | PE81: ='Savings Summary'!AV59 ->  | PG81: ='Savings Summary'!AX59 ->  | PI81: ='Savings Summary'!AZ59 ->  | PK81: ='Savings Summary'!BB59 ->  | PM81: ='Savings Summary'!BD59 ->  | PO81: ='Savings Summary'!BF59 ->  | QC81: ='Savings Summary'!AT60 ->  | QE81: ='Savings Summary'!AV60 ->  | QG81: ='Savings Summary'!AX60 ->  | QI81: ='Savings Summary'!AZ60 ->  | QK81: ='Savings Summary'!BB60 ->  | QM81: ='Savings Summary'!BD60 ->  | QO81: ='Savings Summary'!BF60 ->  | RC81: ='Savings Summary'!AT61 ->  | RE81: ='Savings Summary'!AV61 ->  | RG81: ='Savings Summary'!AX61 ->  | RI81: ='Savings Summary'!AZ61 ->  | RK81: ='Savings Summary'!BB61 ->  | RM81: ='Savings Summary'!BD61 ->  | RO81: ='Savings Summary'!BF61 ->  | SC81: ='Savings Summary'!AT62 ->  | SE81: ='Savings Summary'!AV62 ->  | SG81: ='Savings Summary'!AX62 ->  | SI81: ='Savings Summary'!AZ62 ->  | SK81: ='Savings Summary'!BB62 ->  | SM81: ='Savings Summary'!BD62 ->  | SO81: ='Savings Summary'!BF62 -> 

Sheet Utility Data
C3: Utility Data
D5: Years of Data:
E8: Flow (MG) | I8: Energy (kWh) | O8: Utility Summary
O9: Energy Use | T9: =IFERROR(I38/G5,"") ->  | V9: kWh/yr
O10: Flow | T10: =IFERROR(E38/G5,"") ->  | V10: MG/yr
O11: Energy Intensity | T11: =IFERROR(T9/T10,"") ->  | V11: (kWh/MG)
C38: Total: | E38: =SUM(E9:H37) -> 0 | I38: =SUM(I9:L37) -> 0
B69: =" Cascade Energy, Inc. © "&YEAR(TODAY())& " " -> Cascade Energy, Inc. © 2021 | Z69: =ToolName&" v"&ToolVersion & " " -> Leak Abatement Energy Savings Tool v2.4

Sheet Savings Summary
C3: ESTIMATE OF ENERGY SAVINGS AND INCENTIVES
C5: Customer: | E5: =IF(ISBLANK(CompanyName),"",CompanyName&" – " &SiteCity&", "&SiteState) -> – ,
AF6: MG/YR | AH6: =F10/F9 -> 
C7: Energy Intensity of the System | AF7: KWH/YR | AH7: =F11/F9 -> 
AF8: Leaks can't be greater than | AH8: 0.5 | AI8: percent
C9: Years of Data: | F9: ='Utility Data'!G5 -> 0 | AF9: If leaks are greater than | AH9: =AH8*AH6 ->  | AI9: MG/YR
C10: Total Flow: | F10: ='Utility Data'!E38 -> 0 | I10: MG | AF10: If leaks are greater than | AH10: =AH6 ->  | AI10: MG/YR
C11: Total Energy: | F11: ='Utility Data'!I38 -> 0 | I11: kWh
C12: Energy Intensity: | F12: =IFERROR(ROUND(F11/F10,2),"") ->  | I12: kWh/MG
C14: Summary of Leaks
C16: # | D16: Approval | G16: Location | P16: Method of Leak Discovery | W16: Costs
C17: 1 | D17: ='Leak Specifications'!X3 -> Preliminary | G17: ='Leak Specifications'!C10 -> 0 | P17: ='Leak Specifications'!J19 -> 0 | W17: ='Leak Specifications'!W41 -> 0 | AB17: =IF(D17="NO",0,W17) -> 0 | AD17: =IF($D17="no",1,0) -> 0 | AE17: =IF($D17="no",1,0) -> 0 | AF17: 0 | AG17: 0 | AH17: 0 | AI17: 0
C18: 2 | D18: ='Leak Specifications'!AX3 -> 0 | G18: ='Leak Specifications'!AC10 -> 0 | P18: ='Leak Specifications'!AJ19 -> 0 | W18: ='Leak Specifications'!AW41 -> 0 | AB18: 0 | AD18: =IF($D18="no",1,0) -> 0 | AE18: 0 | AF18: 0 | AG18: 0 | AH18: 0 | AI18: 0
C19: 3 | D19: ='Leak Specifications'!BX3 -> 0 | G19: ='Leak Specifications'!BC10 -> 0 | P19: ='Leak Specifications'!BJ19 -> 0 | W19: ='Leak Specifications'!BW41 -> 0 | AB19: 0 | AD19: 0 | AE19: 0 | AF19: 0 | AG19: 0 | AH19: 0 | AI19: 0
C20: 4 | D20: ='Leak Specifications'!CX3 -> 0 | G20: ='Leak Specifications'!CC10 -> 0 | P20: ='Leak Specifications'!CJ19 -> 0 | W20: ='Leak Specifications'!CW41 -> 0 | AB20: 0 | AD20: 0 | AE20: 0 | AF20: 0 | AG20: 0 | AH20: 0 | AI20: 0
C21: 5 | D21: ='Leak Specifications'!DX3 -> 0 | G21: ='Leak Specifications'!DC10 -> 0 | P21: ='Leak Specifications'!DJ19 -> 0 | W21: ='Leak Specifications'!DW41 -> 0 | AB21: 0 | AD21: 0 | AE21: 0 | AF21: 0 | AG21: 0 | AH21: 0 | AI21: 0
C22: 6 | D22: ='Leak Specifications'!EX3 -> 0 | G22: ='Leak Specifications'!EC10 -> 0 | P22: ='Leak Specifications'!EJ19 -> 0 | W22: ='Leak Specifications'!EW41 -> 0 | AB22: 0 | AD22: 0 | AE22: 0 | AF22: 0 | AG22: 0 | AH22: 0 | AI22: 0
C23: 7 | D23: ='Leak Specifications'!FX3 -> 0 | G23: ='Leak Specifications'!FC10 -> 0 | P23: ='Leak Specifications'!FJ19 -> 0 | W23: ='Leak Specifications'!FW41 -> 0 | AB23: 0 | AD23: 0 | AE23: 0 | AF23: 0 | AG23: 0 | AH23: 0 | AI23: 0
C24: 8 | D24: ='Leak Specifications'!GX3 -> 0 | G24: ='Leak Specifications'!GC10 -> 0 | P24: ='Leak Specifications'!GJ19 -> 0 | W24: ='Leak Specifications'!GW41 -> 0 | AB24: 0 | AD24: 0 | AE24: 0 | AF24: 0 | AG24: 0 | AH24: 0 | AI24: 0
C25: 9 | D25: ='Leak Specifications'!HX3 -> 0 | G25: ='Leak Specifications'!HC10 -> 0 | P25: ='Leak Specifications'!HJ19 -> 0 | W25: ='Leak Specifications'!HW41 -> 0 | AB25: 0 | AD25: 0 | AE25: 0 | AF25: 0 | AG25: 0 | AH25: 0 | AI25: 0
C26: 10 | D26: ='Leak Specifications'!IX3 -> 0 | G26: ='Leak Specifications'!IC10 -> 0 | P26: ='Leak Specifications'!IJ19 -> 0 | W26: ='Leak Specifications'!IW41 -> 0 | AB26: 0 | AD26: 0 | AE26: 0 | AF26: 0 | AG26: 0 | AH26: 0 | AI26: 0
C27: 11 | D27: ='Leak Specifications'!JX3 -> 0 | G27: ='Leak Specifications'!JC10 -> 0 | P27: ='Leak Specifications'!JJ19 -> 0 | W27: ='Leak Specifications'!JW41 -> 0 | AB27: 0 | AD27: 0 | AE27: 0 | AF27: 0 | AG27: 0 | AH27: 0 | AI27: 0
C28: 12 | D28: ='Leak Specifications'!KX3 -> 0 | G28: ='Leak Specifications'!KC10 -> 0 | P28: ='Leak Specifications'!KJ19 -> 0 | W28: ='Leak Specifications'!KW41 -> 0 | AB28: 0 | AD28: 0 | AE28: 0 | AF28: 0 | AG28: 0 | AH28: 0 | AI28: 0
C29: 13 | D29: ='Leak Specifications'!LX3 -> 0 | G29: ='Leak Specifications'!LC10 -> 0 | P29: ='Leak Specifications'!LJ19 -> 0 | W29: ='Leak Specifications'!LW41 -> 0 | AB29: 0 | AD29: 0 | AE29: 0 | AF29: 0 | AG29: 0 | AH29: 0 | AI29: 0
C30: 14 | D30: ='Leak Specifications'!MX3 -> 0 | G30: ='Leak Specifications'!MC10 -> 0 | P30: ='Leak Specifications'!MJ19 -> 0 | W30: ='Leak Specifications'!MW41 -> 0 | AB30: 0 | AD30: 0 | AE30: 0 | AF30: 0 | AG30: 0 | AH30: 0 | AI30: 0
C31: 15 | D31: ='Leak Specifications'!NX3 -> 0 | G31: ='Leak Specifications'!NC10 -> 0 | P31: ='Leak Specifications'!NJ19 -> 0 | W31: ='Leak Specifications'!NW41 -> 0 | AB31: 0 | AD31: 0 | AE31: 0 | AF31: 0 | AG31: 0 | AH31: 0 | AI31: 0
C32: 16 | D32: ='Leak Specifications'!OX3 -> 0 | G32: ='Leak Specifications'!OC10 -> 0 | P32: ='Leak Specifications'!OJ19 -> 0 | W32: ='Leak Specifications'!OW41 -> 0 | AB32: 0 | AD32: 0 | AE32: 0 | AF32: 0 | AG32: 0 | AH32: 0 | AI32: 0
C33: 17 | D33: ='Leak Specifications'!PX3 -> 0 | G33: ='Leak Specifications'!PC10 -> 0 | P33: ='Leak Specifications'!PJ19 -> 0 | W33: ='Leak Specifications'!PW41 -> 0 | AB33: 0 | AD33: 0 | AE33: 0 | AF33: 0 | AG33: 0 | AH33: 0 | AI33: 0
C34: 18 | D34: ='Leak Specifications'!QX3 -> 0 | G34: ='Leak Specifications'!QC10 -> 0 | P34: ='Leak Specifications'!QJ19 -> 0 | W34: ='Leak Specifications'!QW41 -> 0 | AB34: 0 | AD34: 0 | AE34: 0 | AF34: 0 | AG34: 0 | AH34: 0 | AI34: 0
C35: 19 | D35: ='Leak Specifications'!RX3 -> 0 | G35: ='Leak Specifications'!RC10 -> 0 | P35: ='Leak Specifications'!RJ19 -> 0 | W35: ='Leak Specifications'!RW41 -> 0 | AB35: 0 | AD35: 0 | AE35: 0 | AF35: 0 | AG35: 0 | AH35: 0 | AI35: 0
C36: 20 | D36: ='Leak Specifications'!SX3 -> 0 | G36: ='Leak Specifications'!SC10 -> 0 | P36: ='Leak Specifications'!SJ19 -> 0 | W36: ='Leak Specifications'!SW41 -> 0 | AB36: 0 | AD36: 0 | AE36: 0 | AF36: 0 | AG36: 0 | AH36: 0 | AI36: 0
C38: Leak Flow Calculations
AG39: 1 | AH39: 2 | AI39: 3 | AJ39: 4 | AK39: 5 | AL39: 6 | AM39: 7 | AN39: 8 | AO39: 9 | AP39: 10 | AQ39: 11 | AR39: 12
C40: # | D40: Method Used for Flow Calculation | J40: Diameter of Hole | L40: Crack Width | N40: Crack Length | P40: Drips per Second | R40: 8 oz Cups per Minute | T40: Pipe Diameter | V40: System Pressure | X40: Calculated Flow Rate | AB40: Final Leak Flow Rate | AC40: Multiplier | AD40: Reducable Option | AE40: Survey | AF40: Definition selection # | AG40: dimension of a circular hole | AH40: dimensions of a crack | AI40: drips per second | AJ40: 8 oz cups per minute | AK40: fire hydrant | AL40: valve | AM40: service connection | AN40: joint leak | AO40: repair band leak | AP40: circumfrencial crack | AQ40: longitudinal crack | AR40: split bell | AT40: Diameter of Hole | AV40: Crack Width | AX40: Crack Length | AZ40: Drips per Second | BB40: 8 oz Cups per Minute | BD40: Pipe Dimater | BF40: System Pressure
J42: [in] | L42: [in] | N42: [in] | T42: [in] | V42: [psig] | X42: [gpm]
C43: 1 | D43: =IF(G17="","",'Leak Specifications'!C19) -> 0 | J43: ='Leak Specifications'!C24 -> 0 | L43: ='Leak Specifications'!E24 -> 0 | N43: ='Leak Specifications'!G24 -> 0 | P43: ='Leak Specifications'!I24 -> 0 | R43: ='Leak Specifications'!K24 -> 0 | T43: ='Leak Specifications'!M24 -> 0 | V43: ='Leak Specifications'!O24 -> 0 | X43: =IFERROR(AC43*HLOOKUP(D43,$AG$40:$AR$62,C43+3,),"") ->  | AB43: =IF(D17="NO",0,X43) ->  | AC43: =IF(AD43+AE43=0,0.5,1) ->  | AD43: =VLOOKUP(D43,Lists!$B$3:$D$14,3,FALSE) ->  | AE43: =VLOOKUP(P17,Lists!$J$3:$K$4,2,FALSE) ->  | AF43: =VLOOKUP(D43,Lists!$B$3:$C$14,2,FALSE) ->  | AG43: =ROUND((J43/2)^2*PI()*V43^0.5*30.39375,1) -> 0 | AH43: =ROUND(L43*N43*V43^0.5*22.796,1) -> 0 | AI43: =P43*0.006 -> 0 | AJ43: =ROUND(R43*0.0627,3) -> 0 | AK43: =ROUND(3.5*(V43/70)^0.5,2) -> 0 | AL43: =ROUND(6.9*(V43/70)^0.5,2) -> 0 | AM43: =AL43 -> 0 | AN43: =ROUND(IFERROR(VLOOKUP(T43,'AWWA Flow Tables'!$S$13:$T$15,2,TRUE),'AWWA Flow Tables'!$T$13)*SQRT(V43/70),1) -> 0 | AO43: =AN43 -> 0 | AP43: =ROUND(VLOOKUP(T43,'AWWA Flow Tables'!$S$16:$T$20,2,TRUE)*SQRT(V43/70),1) ->  | AQ43: =ROUND(IFERROR(VLOOKUP(T43,'AWWA Flow Tables'!$S$21:$T$24,2,TRUE),'AWWA Flow Tables'!$T$21)*SQRT(V43/70),1) -> 0 | AR43: =AQ43 -> 0 | AS43: 1 | AT43: =IF(AF43=1,1,0) ->  | AV43: =IF(AF43=2,1,0) ->  | AX43: =AV43 ->  | AZ43: =IF(AF43=3,1,0) ->  | BB43: =IF(AF43=4,1,0) ->  | BD43: =IF(AF43>7,1,0) ->  | BF43: =IF(NOT(OR(AF43=3,AF43=4)),1,0) -> 
C44: 2 | D44: =IF(G18="","",'Leak Specifications'!AC19) -> 0 | J44: ='Leak Specifications'!AC24 -> 0 | L44: ='Leak Specifications'!AE24 -> 0 | N44: ='Leak Specifications'!AG24 -> 0 | P44: ='Leak Specifications'!AI24 -> 0 | R44: ='Leak Specifications'!AK24 -> 0 | T44: ='Leak Specifications'!AM24 -> 0 | V44: ='Leak Specifications'!AO24 -> 0 | X44: =IFERROR(AC44*HLOOKUP(D44,$AG$40:$AR$62,C44+3,),"") ->  | AB44: =IF(D18="NO",0,X44) ->  | AC44: =IF(AD44+AE44=0,0.5,1) ->  | AD44: =VLOOKUP(D44,Lists!$B$3:$D$14,3,FALSE) ->  | AE44: =VLOOKUP(P18,Lists!$J$3:$K$4,2,FALSE) ->  | AF44: =VLOOKUP(D44,Lists!$B$3:$C$14,2,FALSE) ->  | AG44: =ROUND((J44/2)^2*PI()*V44^0.5*30.39375,1) -> 0 | AH44: =ROUND(L44*N44*V44^0.5*22.796,1) -> 0 | AI44: =P44*0.006 -> 0 | AJ44: =ROUND(R44*0.0627,3) -> 0 | AK44: =ROUND(3.5*(V44/70)^0.5,2) -> 0 | AL44: =ROUND(6.9*(V44/70)^0.5,2) -> 0 | AM44: =AL44 -> 0 | AN44: =ROUND(IFERROR(VLOOKUP(T44,'AWWA Flow Tables'!$S$13:$T$15,2,TRUE),'AWWA Flow Tables'!$T$13)*SQRT(V44/70),1) -> 0 | AO44: =AN44 -> 0 | AP44: =ROUND(VLOOKUP(T44,'AWWA Flow Tables'!$S$16:$T$20,2,TRUE)*SQRT(V44/70),1) ->  | AQ44: =ROUND(IFERROR(VLOOKUP(T44,'AWWA Flow Tables'!$S$21:$T$24,2,TRUE),'AWWA Flow Tables'!$T$21)*SQRT(V44/70),1) -> 0 | AR44: =AQ44 -> 0 | AS44: 2
C45: 3 | D45: =IF(G19="","",'Leak Specifications'!BC19) -> 0 | J45: ='Leak Specifications'!BC24 -> 0 | L45: ='Leak Specifications'!BE24 -> 0 | N45: ='Leak Specifications'!BG24 -> 0 | P45: ='Leak Specifications'!BI24 -> 0 | R45: ='Leak Specifications'!BK24 -> 0 | T45: ='Leak Specifications'!BM24 -> 0 | V45: ='Leak Specifications'!BO24 -> 0 | X45: =IFERROR(AC45*HLOOKUP(D45,$AG$40:$AR$62,C45+3,),"") ->  | AD45: =VLOOKUP(D45,Lists!$B$3:$D$14,3,FALSE) ->  | AE45: =VLOOKUP(P19,Lists!$J$3:$K$4,2,FALSE) ->  | AF45: =VLOOKUP(D45,Lists!$B$3:$C$14,2,FALSE) ->  | AG45: =ROUND((J45/2)^2*PI()*V45^0.5*30.39375,1) -> 0 | AH45: =ROUND(L45*N45*V45^0.5*22.796,1) -> 0 | AI45: =P45*0.006 -> 0 | AJ45: =ROUND(R45*0.0627,3) -> 0 | AK45: =ROUND(3.5*(V45/70)^0.5,2) -> 0 | AL45: =ROUND(6.9*(V45/70)^0.5,2) -> 0 | AM45: =AL45 -> 0 | AN45: =ROUND(IFERROR(VLOOKUP(T45,'AWWA Flow Tables'!$S$13:$T$15,2,TRUE),'AWWA Flow Tables'!$T$13)*SQRT(V45/70),1) -> 0 | AO45: =AN45 -> 0 | AP45: =ROUND(VLOOKUP(T45,'AWWA Flow Tables'!$S$16:$T$20,2,TRUE)*SQRT(V45/70),1) ->  | AQ45: =ROUND(IFERROR(VLOOKUP(T45,'AWWA Flow Tables'!$S$21:$T$24,2,TRUE),'AWWA Flow Tables'!$T$21)*SQRT(V45/70),1) -> 0 | AR45: =AQ45 -> 0 | AS45: 3
C46: 4 | D46: =IF(G20="","",'Leak Specifications'!CC19) -> 0 | J46: ='Leak Specifications'!CC24 -> 0 | L46: ='Leak Specifications'!CE24 -> 0 | N46: ='Leak Specifications'!CG24 -> 0 | P46: ='Leak Specifications'!CI24 -> 0 | R46: ='Leak Specifications'!CK24 -> 0 | T46: ='Leak Specifications'!CM24 -> 0 | V46: ='Leak Specifications'!CO24 -> 0 | AD46: =VLOOKUP(D46,Lists!$B$3:$D$14,3,FALSE) ->  | AE46: =VLOOKUP(P20,Lists!$J$3:$K$4,2,FALSE) ->  | AF46: =VLOOKUP(D46,Lists!$B$3:$C$14,2,FALSE) ->  | AG46: 0 | AH46: 0 | AI46: 0 | AJ46: 0 | AK46: 0 | AL46: 0 | AM46: 0 | AN46: =ROUND(IFERROR(VLOOKUP(T46,'AWWA Flow Tables'!$S$13:$T$15,2,TRUE),'AWWA Flow Tables'!$T$13)*SQRT(V46/70),1) -> 0 | AO46: 0 | AP46: =ROUND(VLOOKUP(T46,'AWWA Flow Tables'!$S$16:$T$20,2,TRUE)*SQRT(V46/70),1) ->  | AQ46: =ROUND(IFERROR(VLOOKUP(T46,'AWWA Flow Tables'!$S$21:$T$24,2,TRUE),'AWWA Flow Tables'!$T$21)*SQRT(V46/70),1) -> 0 | AR46: 0 | AS46: 4
C47: 5 | D47: =IF(G21="","",'Leak Specifications'!DC19) -> 0 | J47: ='Leak Specifications'!DC24 -> 0 | L47: ='Leak Specifications'!DE24 -> 0 | N47: ='Leak Specifications'!DG24 -> 0 | P47: ='Leak Specifications'!DI24 -> 0 | R47: ='Leak Specifications'!DK24 -> 0 | T47: ='Leak Specifications'!DM24 -> 0 | V47: ='Leak Specifications'!DO24 -> 0 | AD47: =VLOOKUP(D47,Lists!$B$3:$D$14,3,FALSE) ->  | AE47: =VLOOKUP(P21,Lists!$J$3:$K$4,2,FALSE) ->  | AF47: =VLOOKUP(D47,Lists!$B$3:$C$14,2,FALSE) ->  | AG47: 0 | AH47: 0 | AI47: 0 | AJ47: 0 | AK47: 0 | AL47: 0 | AM47: 0 | AN47: =ROUND(IFERROR(VLOOKUP(T47,'AWWA Flow Tables'!$S$13:$T$15,2,TRUE),'AWWA Flow Tables'!$T$13)*SQRT(V47/70),1) -> 0 | AO47: 0 | AP47: =ROUND(VLOOKUP(T47,'AWWA Flow Tables'!$S$16:$T$20,2,TRUE)*SQRT(V47/70),1) ->  | AQ47: =ROUND(IFERROR(VLOOKUP(T47,'AWWA Flow Tables'!$S$21:$T$24,2,TRUE),'AWWA Flow Tables'!$T$21)*SQRT(V47/70),1) -> 0 | AR47: 0 | AS47: 5
C48: 6 | D48: =IF(G22="","",'Leak Specifications'!EC19) -> 0 | J48: ='Leak Specifications'!EC24 -> 0 | L48: ='Leak Specifications'!EE24 -> 0 | N48: ='Leak Specifications'!EG24 -> 0 | P48: ='Leak Specifications'!EI24 -> 0 | R48: ='Leak Specifications'!EK24 -> 0 | T48: ='Leak Specifications'!EM24 -> 0 | V48: ='Leak Specifications'!EO24 -> 0 | AD48: =VLOOKUP(D48,Lists!$B$3:$D$14,3,FALSE) ->  | AE48: =VLOOKUP(P22,Lists!$J$3:$K$4,2,FALSE) ->  | AF48: =VLOOKUP(D48,Lists!$B$3:$C$14,2,FALSE) ->  | AG48: 0 | AH48: 0 | AI48: 0 | AJ48: 0 | AK48: 0 | AL48: 0 | AM48: 0 | AN48: =ROUND(IFERROR(VLOOKUP(T48,'AWWA Flow Tables'!$S$13:$T$15,2,TRUE),'AWWA Flow Tables'!$T$13)*SQRT(V48/70),1) -> 0 | AO48: 0 | AP48: =ROUND(VLOOKUP(T48,'AWWA Flow Tables'!$S$16:$T$20,2,TRUE)*SQRT(V48/70),1) ->  | AQ48: =ROUND(IFERROR(VLOOKUP(T48,'AWWA Flow Tables'!$S$21:$T$24,2,TRUE),'AWWA Flow Tables'!$T$21)*SQRT(V48/70),1) -> 0 | AR48: 0 | AS48: 6
C49: 7 | D49: =IF(G23="","",'Leak Specifications'!FC19) -> 0 | J49: ='Leak Specifications'!FC24 -> 0 | L49: ='Leak Specifications'!FE24 -> 0 | N49: ='Leak Specifications'!FG24 -> 0 | P49: ='Leak Specifications'!FI24 -> 0 | R49: ='Leak Specifications'!FK24 -> 0 | T49: ='Leak Specifications'!FM24 -> 0 | V49: ='Leak Specifications'!FO24 -> 0 | AD49: =VLOOKUP(D49,Lists!$B$3:$D$14,3,FALSE) ->  | AE49: =VLOOKUP(P23,Lists!$J$3:$K$4,2,FALSE) ->  | AF49: =VLOOKUP(D49,Lists!$B$3:$C$14,2,FALSE) ->  | AG49: 0 | AH49: 0 | AI49: 0 | AJ49: 0 | AK49: 0 | AL49: 0 | AM49: 0 | AN49: =ROUND(IFERROR(VLOOKUP(T49,'AWWA Flow Tables'!$S$13:$T$15,2,TRUE),'AWWA Flow Tables'!$T$13)*SQRT(V49/70),1) -> 0 | AO49: 0 | AP49: =ROUND(VLOOKUP(T49,'AWWA Flow Tables'!$S$16:$T$20,2,TRUE)*SQRT(V49/70),1) ->  | AQ49: =ROUND(IFERROR(VLOOKUP(T49,'AWWA Flow Tables'!$S$21:$T$24,2,TRUE),'AWWA Flow Tables'!$T$21)*SQRT(V49/70),1) -> 0 | AR49: 0 | AS49: 7
C50: 8 | D50: ='Leak Specifications'!GC19 -> 0 | J50: ='Leak Specifications'!GC24 -> 0 | L50: ='Leak Specifications'!GE24 -> 0 | N50: ='Leak Specifications'!GG24 -> 0 | P50: ='Leak Specifications'!GI24 -> 0 | R50: ='Leak Specifications'!GK24 -> 0 | T50: ='Leak Specifications'!GM24 -> 0 | V50: ='Leak Specifications'!GO24 -> 0 | AD50: =VLOOKUP(D50,Lists!$B$3:$D$14,3,FALSE) ->  | AE50: =VLOOKUP(P24,Lists!$J$3:$K$4,2,FALSE) ->  | AF50: =VLOOKUP(D50,Lists!$B$3:$C$14,2,FALSE) ->  | AG50: 0 | AH50: 0 | AI50: 0 | AJ50: 0 | AK50: 0 | AL50: 0 | AM50: 0 | AN50: =ROUND(IFERROR(VLOOKUP(T50,'AWWA Flow Tables'!$S$13:$T$15,2,TRUE),'AWWA Flow Tables'!$T$13)*SQRT(V50/70),1) -> 0 | AO50: 0 | AP50: =ROUND(VLOOKUP(T50,'AWWA Flow Tables'!$S$16:$T$20,2,TRUE)*SQRT(V50/70),1) ->  | AQ50: =ROUND(IFERROR(VLOOKUP(T50,'AWWA Flow Tables'!$S$21:$T$24,2,TRUE),'AWWA Flow Tables'!$T$21)*SQRT(V50/70),1) -> 0 | AR50: 0 | AS50: 8
C51: 9 | D51: ='Leak Specifications'!HC19 -> 0 | J51: ='Leak Specifications'!HC24 -> 0 | L51: ='Leak Specifications'!HE24 -> 0 | N51: ='Leak Specifications'!HG24 -> 0 | P51: ='Leak Specifications'!HI24 -> 0 | R51: ='Leak Specifications'!HK24 -> 0 | T51: ='Leak Specifications'!HM24 -> 0 | V51: ='Leak Specifications'!HO24 -> 0 | AD51: =VLOOKUP(D51,Lists!$B$3:$D$14,3,FALSE) ->  | AE51: =VLOOKUP(P25,Lists!$J$3:$K$4,2,FALSE) ->  | AF51: =VLOOKUP(D51,Lists!$B$3:$C$14,2,FALSE) ->  | AG51: 0 | AH51: 0 | AI51: 0 | AJ51: 0 | AK51: 0 | AL51: 0 | AM51: 0 | AN51: =ROUND(IFERROR(VLOOKUP(T51,'AWWA Flow Tables'!$S$13:$T$15,2,TRUE),'AWWA Flow Tables'!$T$13)*SQRT(V51/70),1) -> 0 | AO51: 0 | AP51: =ROUND(VLOOKUP(T51,'AWWA Flow Tables'!$S$16:$T$20,2,TRUE)*SQRT(V51/70),1) ->  | AQ51: =ROUND(IFERROR(VLOOKUP(T51,'AWWA Flow Tables'!$S$21:$T$24,2,TRUE),'AWWA Flow Tables'!$T$21)*SQRT(V51/70),1) -> 0 | AR51: 0 | AS51: 9
C52: 10 | D52: ='Leak Specifications'!IC19 -> 0 | J52: ='Leak Specifications'!IC24 -> 0 | L52: ='Leak Specifications'!IE24 -> 0 | N52: ='Leak Specifications'!IG24 -> 0 | P52: ='Leak Specifications'!II24 -> 0 | R52: ='Leak Specifications'!IK24 -> 0 | T52: ='Leak Specifications'!IM24 -> 0 | V52: ='Leak Specifications'!IO24 -> 0 | AD52: =VLOOKUP(D52,Lists!$B$3:$D$14,3,FALSE) ->  | AE52: =VLOOKUP(P26,Lists!$J$3:$K$4,2,FALSE) ->  | AF52: =VLOOKUP(D52,Lists!$B$3:$C$14,2,FALSE) ->  | AG52: 0 | AH52: 0 | AI52: 0 | AJ52: 0 | AK52: 0 | AL52: 0 | AM52: 0 | AN52: =ROUND(IFERROR(VLOOKUP(T52,'AWWA Flow Tables'!$S$13:$T$15,2,TRUE),'AWWA Flow Tables'!$T$13)*SQRT(V52/70),1) -> 0 | AO52: 0 | AP52: =ROUND(VLOOKUP(T52,'AWWA Flow Tables'!$S$16:$T$20,2,TRUE)*SQRT(V52/70),1) ->  | AQ52: =ROUND(IFERROR(VLOOKUP(T52,'AWWA Flow Tables'!$S$21:$T$24,2,TRUE),'AWWA Flow Tables'!$T$21)*SQRT(V52/70),1) -> 0 | AR52: 0 | AS52: 10
C53: 11 | D53: ='Leak Specifications'!JC19 -> 0 | J53: ='Leak Specifications'!JC24 -> 0 | L53: ='Leak Specifications'!JE24 -> 0 | N53: ='Leak Specifications'!JG24 -> 0 | P53: ='Leak Specifications'!JI24 -> 0 | R53: ='Leak Specifications'!JK24 -> 0 | T53: ='Leak Specifications'!JM24 -> 0 | V53: ='Leak Specifications'!JO24 -> 0 | AD53: =VLOOKUP(D53,Lists!$B$3:$D$14,3,FALSE) ->  | AE53: =VLOOKUP(P27,Lists!$J$3:$K$4,2,FALSE) ->  | AF53: =VLOOKUP(D53,Lists!$B$3:$C$14,2,FALSE) ->  | AG53: 0 | AH53: 0 | AI53: 0 | AJ53: 0 | AK53: 0 | AL53: 0 | AM53: 0 | AN53: =ROUND(IFERROR(VLOOKUP(T53,'AWWA Flow Tables'!$S$13:$T$15,2,TRUE),'AWWA Flow Tables'!$T$13)*SQRT(V53/70),1) -> 0 | AO53: 0 | AP53: =ROUND(VLOOKUP(T53,'AWWA Flow Tables'!$S$16:$T$20,2,TRUE)*SQRT(V53/70),1) ->  | AQ53: =ROUND(IFERROR(VLOOKUP(T53,'AWWA Flow Tables'!$S$21:$T$24,2,TRUE),'AWWA Flow Tables'!$T$21)*SQRT(V53/70),1) -> 0 | AR53: 0 | AS53: 11 | AT53: =IF(AF53=1,1,0) ->  | AV53: =IF(AF53=2,1,0) ->  | AX53: =AV53 ->  | AZ53: =IF(AF53=3,1,0) ->  | BB53: =IF(AF53=4,1,0) ->  | BD53: =IF(AF53>7,1,0) ->  | BF53: =IF(NOT(OR(AF53=3,AF53=4)),1,0) -> 
C54: 12 | D54: ='Leak Specifications'!KC19 -> 0 | J54: ='Leak Specifications'!KC24 -> 0 | L54: ='Leak Specifications'!KE24 -> 0 | N54: ='Leak Specifications'!KG24 -> 0 | P54: ='Leak Specifications'!KI24 -> 0 | R54: ='Leak Specifications'!KK24 -> 0 | T54: ='Leak Specifications'!KM24 -> 0 | V54: ='Leak Specifications'!KO24 -> 0 | AD54: =VLOOKUP(D54,Lists!$B$3:$D$14,3,FALSE) ->  | AE54: =VLOOKUP(P28,Lists!$J$3:$K$4,2,FALSE) ->  | AF54: =VLOOKUP(D54,Lists!$B$3:$C$14,2,FALSE) ->  | AG54: 0 | AH54: 0 | AI54: 0 | AJ54: 0 | AK54: 0 | AL54: 0 | AM54: 0 | AN54: =ROUND(IFERROR(VLOOKUP(T54,'AWWA Flow Tables'!$S$13:$T$15,2,TRUE),'AWWA Flow Tables'!$T$13)*SQRT(V54/70),1) -> 0 | AO54: 0 | AP54: =ROUND(VLOOKUP(T54,'AWWA Flow Tables'!$S$16:$T$20,2,TRUE)*SQRT(V54/70),1) ->  | AQ54: =ROUND(IFERROR(VLOOKUP(T54,'AWWA Flow Tables'!$S$21:$T$24,2,TRUE),'AWWA Flow Tables'!$T$21)*SQRT(V54/70),1) -> 0 | AR54: 0 | AS54: 12
C55: 13 | D55: ='Leak Specifications'!LC19 -> 0 | J55: ='Leak Specifications'!LC24 -> 0 | L55: ='Leak Specifications'!LE24 -> 0 | N55: ='Leak Specifications'!LG24 -> 0 | P55: ='Leak Specifications'!LI24 -> 0 | R55: ='Leak Specifications'!LK24 -> 0 | T55: ='Leak Specifications'!LM24 -> 0 | V55: ='Leak Specifications'!LO24 -> 0 | AB55: =IF(D29="NO",0,X55) ->  | AD55: =VLOOKUP(D55,Lists!$B$3:$D$14,3,FALSE) ->  | AE55: =VLOOKUP(P29,Lists!$J$3:$K$4,2,FALSE) ->  | AF55: =VLOOKUP(D55,Lists!$B$3:$C$14,2,FALSE) ->  | AG55: 0 | AH55: 0 | AI55: 0 | AJ55: 0 | AK55: 0 | AL55: 0 | AM55: 0 | AN55: =ROUND(IFERROR(VLOOKUP(T55,'AWWA Flow Tables'!$S$13:$T$15,2,TRUE),'AWWA Flow Tables'!$T$13)*SQRT(V55/70),1) -> 0 | AO55: 0 | AP55: =ROUND(VLOOKUP(T55,'AWWA Flow Tables'!$S$16:$T$20,2,TRUE)*SQRT(V55/70),1) ->  | AQ55: =ROUND(IFERROR(VLOOKUP(T55,'AWWA Flow Tables'!$S$21:$T$24,2,TRUE),'AWWA Flow Tables'!$T$21)*SQRT(V55/70),1) -> 0 | AR55: 0 | AS55: 13
C56: 14 | D56: ='Leak Specifications'!MC19 -> 0 | J56: ='Leak Specifications'!MC24 -> 0 | L56: ='Leak Specifications'!ME24 -> 0 | N56: ='Leak Specifications'!MG24 -> 0 | P56: ='Leak Specifications'!MI24 -> 0 | R56: ='Leak Specifications'!MK24 -> 0 | T56: ='Leak Specifications'!MM24 -> 0 | V56: ='Leak Specifications'!MO24 -> 0 | AD56: =VLOOKUP(D56,Lists!$B$3:$D$14,3,FALSE) ->  | AE56: =VLOOKUP(P30,Lists!$J$3:$K$4,2,FALSE) ->  | AF56: =VLOOKUP(D56,Lists!$B$3:$C$14,2,FALSE) ->  | AG56: 0 | AH56: 0 | AI56: 0 | AJ56: 0 | AK56: 0 | AL56: 0 | AM56: 0 | AN56: =ROUND(IFERROR(VLOOKUP(T56,'AWWA Flow Tables'!$S$13:$T$15,2,TRUE),'AWWA Flow Tables'!$T$13)*SQRT(V56/70),1) -> 0 | AO56: 0 | AP56: =ROUND(VLOOKUP(T56,'AWWA Flow Tables'!$S$16:$T$20,2,TRUE)*SQRT(V56/70),1) ->  | AQ56: =ROUND(IFERROR(VLOOKUP(T56,'AWWA Flow Tables'!$S$21:$T$24,2,TRUE),'AWWA Flow Tables'!$T$21)*SQRT(V56/70),1) -> 0 | AR56: 0 | AS56: 14
C57: 15 | D57: ='Leak Specifications'!NC19 -> 0 | J57: ='Leak Specifications'!NC24 -> 0 | L57: ='Leak Specifications'!NE24 -> 0 | N57: ='Leak Specifications'!NG24 -> 0 | P57: ='Leak Specifications'!NI24 -> 0 | R57: ='Leak Specifications'!NK24 -> 0 | T57: ='Leak Specifications'!NM24 -> 0 | V57: ='Leak Specifications'!NO24 -> 0 | AD57: =VLOOKUP(D57,Lists!$B$3:$D$14,3,FALSE) ->  | AE57: =VLOOKUP(P31,Lists!$J$3:$K$4,2,FALSE) ->  | AF57: =VLOOKUP(D57,Lists!$B$3:$C$14,2,FALSE) ->  | AG57: 0 | AH57: 0 | AI57: 0 | AJ57: 0 | AK57: 0 | AL57: 0 | AM57: 0 | AN57: =ROUND(IFERROR(VLOOKUP(T57,'AWWA Flow Tables'!$S$13:$T$15,2,TRUE),'AWWA Flow Tables'!$T$13)*SQRT(V57/70),1) -> 0 | AO57: 0 | AP57: =ROUND(VLOOKUP(T57,'AWWA Flow Tables'!$S$16:$T$20,2,TRUE)*SQRT(V57/70),1) ->  | AQ57: =ROUND(IFERROR(VLOOKUP(T57,'AWWA Flow Tables'!$S$21:$T$24,2,TRUE),'AWWA Flow Tables'!$T$21)*SQRT(V57/70),1) -> 0 | AR57: 0 | AS57: 15
C58: 16 | D58: ='Leak Specifications'!OC19 -> 0 | J58: ='Leak Specifications'!OC24 -> 0 | L58: ='Leak Specifications'!OE24 -> 0 | N58: ='Leak Specifications'!OG24 -> 0 | P58: ='Leak Specifications'!OI24 -> 0 | R58: ='Leak Specifications'!OK24 -> 0 | T58: ='Leak Specifications'!OM24 -> 0 | V58: ='Leak Specifications'!OO24 -> 0 | AD58: =VLOOKUP(D58,Lists!$B$3:$D$14,3,FALSE) ->  | AE58: =VLOOKUP(P32,Lists!$J$3:$K$4,2,FALSE) ->  | AF58: =VLOOKUP(D58,Lists!$B$3:$C$14,2,FALSE) ->  | AG58: 0 | AH58: 0 | AI58: 0 | AJ58: 0 | AK58: 0 | AL58: 0 | AM58: 0 | AN58: =ROUND(IFERROR(VLOOKUP(T58,'AWWA Flow Tables'!$S$13:$T$15,2,TRUE),'AWWA Flow Tables'!$T$13)*SQRT(V58/70),1) -> 0 | AO58: 0 | AP58: =ROUND(VLOOKUP(T58,'AWWA Flow Tables'!$S$16:$T$20,2,TRUE)*SQRT(V58/70),1) ->  | AQ58: =ROUND(IFERROR(VLOOKUP(T58,'AWWA Flow Tables'!$S$21:$T$24,2,TRUE),'AWWA Flow Tables'!$T$21)*SQRT(V58/70),1) -> 0 | AR58: 0 | AS58: 16
C59: 17 | D59: ='Leak Specifications'!PC19 -> 0 | J59: ='Leak Specifications'!PC24 -> 0 | L59: ='Leak Specifications'!PE24 -> 0 | N59: ='Leak Specifications'!PG24 -> 0 | P59: ='Leak Specifications'!PI24 -> 0 | R59: ='Leak Specifications'!PK24 -> 0 | T59: ='Leak Specifications'!PM24 -> 0 | V59: ='Leak Specifications'!PO24 -> 0 | AD59: =VLOOKUP(D59,Lists!$B$3:$D$14,3,FALSE) ->  | AE59: =VLOOKUP(P33,Lists!$J$3:$K$4,2,FALSE) ->  | AF59: =VLOOKUP(D59,Lists!$B$3:$C$14,2,FALSE) ->  | AG59: 0 | AH59: 0 | AI59: 0 | AJ59: 0 | AK59: 0 | AL59: 0 | AM59: 0 | AN59: =ROUND(IFERROR(VLOOKUP(T59,'AWWA Flow Tables'!$S$13:$T$15,2,TRUE),'AWWA Flow Tables'!$T$13)*SQRT(V59/70),1) -> 0 | AO59: 0 | AP59: =ROUND(VLOOKUP(T59,'AWWA Flow Tables'!$S$16:$T$20,2,TRUE)*SQRT(V59/70),1) ->  | AQ59: =ROUND(IFERROR(VLOOKUP(T59,'AWWA Flow Tables'!$S$21:$T$24,2,TRUE),'AWWA Flow Tables'!$T$21)*SQRT(V59/70),1) -> 0 | AR59: 0 | AS59: 17
C60: 18 | D60: ='Leak Specifications'!QC19 -> 0 | J60: ='Leak Specifications'!QC24 -> 0 | L60: ='Leak Specifications'!QE24 -> 0 | N60: ='Leak Specifications'!QG24 -> 0 | P60: ='Leak Specifications'!QI24 -> 0 | R60: ='Leak Specifications'!QK24 -> 0 | T60: ='Leak Specifications'!QM24 -> 0 | V60: ='Leak Specifications'!QO24 -> 0 | AD60: =VLOOKUP(D60,Lists!$B$3:$D$14,3,FALSE) ->  | AE60: =VLOOKUP(P34,Lists!$J$3:$K$4,2,FALSE) ->  | AF60: =VLOOKUP(D60,Lists!$B$3:$C$14,2,FALSE) ->  | AG60: 0 | AH60: 0 | AI60: 0 | AJ60: 0 | AK60: 0 | AL60: 0 | AM60: 0 | AN60: =ROUND(IFERROR(VLOOKUP(T60,'AWWA Flow Tables'!$S$13:$T$15,2,TRUE),'AWWA Flow Tables'!$T$13)*SQRT(V60/70),1) -> 0 | AO60: 0 | AP60: =ROUND(VLOOKUP(T60,'AWWA Flow Tables'!$S$16:$T$20,2,TRUE)*SQRT(V60/70),1) ->  | AQ60: =ROUND(IFERROR(VLOOKUP(T60,'AWWA Flow Tables'!$S$21:$T$24,2,TRUE),'AWWA Flow Tables'!$T$21)*SQRT(V60/70),1) -> 0 | AR60: 0 | AS60: 18
C61: 19 | D61: ='Leak Specifications'!RC19 -> 0 | J61: ='Leak Specifications'!RC24 -> 0 | L61: ='Leak Specifications'!RE24 -> 0 | N61: ='Leak Specifications'!RG24 -> 0 | P61: ='Leak Specifications'!RI24 -> 0 | R61: ='Leak Specifications'!RK24 -> 0 | T61: ='Leak Specifications'!RM24 -> 0 | V61: ='Leak Specifications'!RO24 -> 0 | AD61: =VLOOKUP(D61,Lists!$B$3:$D$14,3,FALSE) ->  | AE61: =VLOOKUP(P35,Lists!$J$3:$K$4,2,FALSE) ->  | AF61: =VLOOKUP(D61,Lists!$B$3:$C$14,2,FALSE) ->  | AG61: 0 | AH61: 0 | AI61: 0 | AJ61: 0 | AK61: 0 | AL61: 0 | AM61: 0 | AN61: =ROUND(IFERROR(VLOOKUP(T61,'AWWA Flow Tables'!$S$13:$T$15,2,TRUE),'AWWA Flow Tables'!$T$13)*SQRT(V61/70),1) -> 0 | AO61: 0 | AP61: =ROUND(VLOOKUP(T61,'AWWA Flow Tables'!$S$16:$T$20,2,TRUE)*SQRT(V61/70),1) ->  | AQ61: =ROUND(IFERROR(VLOOKUP(T61,'AWWA Flow Tables'!$S$21:$T$24,2,TRUE),'AWWA Flow Tables'!$T$21)*SQRT(V61/70),1) -> 0 | AR61: 0 | AS61: 19
C62: 20 | D62: ='Leak Specifications'!SC19 -> 0 | J62: ='Leak Specifications'!SC24 -> 0 | L62: ='Leak Specifications'!SE24 -> 0 | N62: ='Leak Specifications'!SG24 -> 0 | P62: ='Leak Specifications'!SI24 -> 0 | R62: ='Leak Specifications'!SK24 -> 0 | T62: ='Leak Specifications'!SM24 -> 0 | V62: ='Leak Specifications'!SO24 -> 0 | X62: =IFERROR(AC62*HLOOKUP(D62,$AG$40:$AR$62,C62+3,),"") ->  | AC62: =IF(AD62+AE62=0,0.5,1) ->  | AD62: =VLOOKUP(D62,Lists!$B$3:$D$14,3,FALSE) ->  | AE62: =VLOOKUP(P36,Lists!$J$3:$K$4,2,FALSE) ->  | AF62: =VLOOKUP(D62,Lists!$B$3:$C$14,2,FALSE) ->  | AG62: 0 | AH62: 0 | AI62: 0 | AJ62: 0 | AK62: 0 | AL62: 0 | AM62: 0 | AN62: =ROUND(IFERROR(VLOOKUP(T62,'AWWA Flow Tables'!$S$13:$T$15,2,TRUE),'AWWA Flow Tables'!$T$13)*SQRT(V62/70),1) -> 0 | AO62: 0 | AP62: =ROUND(VLOOKUP(T62,'AWWA Flow Tables'!$S$16:$T$20,2,TRUE)*SQRT(V62/70),1) ->  | AQ62: =ROUND(IFERROR(VLOOKUP(T62,'AWWA Flow Tables'!$S$21:$T$24,2,TRUE),'AWWA Flow Tables'!$T$21)*SQRT(V62/70),1) -> 0 | AR62: 0 | AS62: 20
C64: Total Flow Reduction: | G64: =ROUND(SUM(AB43:AB62),2) -> 0 | J64: gpm | AB64: =G64*8760*60 -> 0
G65: =ROUND(G64*8760*60/1000000,2) -> 0 | J65: MG/yr | N65: =IFERROR(IF(OR(G66>AH8,G65>AH6),"ERROR: Calculated leaks may be greater than possible based on provided utility data. Please review entered data.",""),"") -> 
C66: Percent Reduction: | G66: =IFERROR(G65/(F10/F9),"") -> 
F67: Energy Intensity: | G67: =F12 ->  | J67: kWh/MG
F68: Energy Savings: | G68: =IFERROR(G67*G65,"") ->  | J68: kWh/yr
C70: ="SUMMARY OF RESULTS" -> SUMMARY OF RESULTS
G72: =IFERROR(F11/F9,"") ->  | R72: Total project costs: | S72: =SUM(AB17:AB36) -> 0 | AB72: =#REF!*IncentiveRateCell -> 
G73: =IFERROR(G72-G68,"") ->  | R73: ='Master Outputs'!I144 -> Estimated Utility Incentive: | S73: =IFERROR('Master Outputs'!L144,"") ->  | AB73: =S72*IncentivePercentCell -> 0
R74: Net Cost after incentives: | S74: =IFERROR(S72-S73,"") -> 
R75: Energy Rate: | S75: =ElectricRate -> 0 | V75: per kWh
R76: Avoided Energy Cost: | S76: =IFERROR(ElectricityCostSavings,"") ->  | V76: per year
R77: Simple Payback: | S77: =IFERROR('Master Outputs'!L148,"") ->  | V77: years
R78: NPV over 10 Years: | S78: =IFERROR('Master Outputs'!L149,"") -> 
R79: BC Ratio: | S79: =IFERROR(G68/S72,"") -> 
B80: =" Cascade Energy, Inc. © "&YEAR(TODAY())& " " -> Cascade Energy, Inc. © 2021 | Z80: =ToolName&" v"&ToolVersion & " " -> Leak Abatement Energy Savings Tool v2.4

Sheet Instructions
B2: Instructions for Using the Leak Abatement Energy Savings Calculator
C5: Customer Information
C6: ● Fill in all fields that are known.
C7: ● The "Utility Incentive Program Information" section may be reset when the state and utility check boxes are changed.
C8: ● The "# of Leak Fixes" will automatically change the leaks that are displayed in the Leak Specifications and Savings Summary.
C10: Leak Specifications
C11: ● Fill in all fields hilighted in yellow. Other fileds are calculated automatically.
C12: ● Set the "Approval for Incentive" to "Preliminary" to apply for the incentive. Approval will later be set to "YES" or "NO" depending on program requirements. "Preliminary" and "YES" both include the leak in the totals while "NO" excludes that particular leak.
C13: ● To add a photo select the "INSERT" tab on the Excel toolbar then select "Pictures" and browse for a photo saved on the computer.
C15: Savings Summary
C16: ● Fill in all fields hilighted in yellow. Other fields are calculated automatically.
C17: ● The "Total Flow" and "Energy Use" must be from equivalent time periods.
C18: ● The "Years of Data" can be fractional and must accurately define the data period.
C20: Leak Check
C21: ● After filling out this tool, verify that the leak repairs are acheivable based on the utility data using the button below.
C25: Creating the EE Central Upload File (for utility and administrator use)
C26: To create the datafile for upload to the EE Central, press CTRL-P while viewing the Savings Calculation page. The file will write immediately and a window will open asking for the filename. The suggested filename is the same as the calculator filename, with "_EE Central" appended. The default folder location is the same as that of the calculator file you are writing from. Folder location and filename may be changed as desired.
B27: ="Cascade Energy, Inc. © "&YEAR(TODAY()) -> Cascade Energy, Inc. © 2021 | D27: =ToolName&" - "&"v"&ToolVersion -> Leak Abatement Energy Savings Tool - v2.4
C63: =MaximumReduction -> 0.5
C64: =percentred -> 

Sheet AWWA Flow Tables
B2: Table 5-3 of Water Audits and Loss Control Programs, Third edition, AWWA
B3: Leakage flow rates for metallic piping systems
E4: Leakage Flow Rate at 70 psi | J4: CWC Leakage Flow Rate at 65 psi*
F5: Unreported | H5: Reported | J5: Unreported | L5: Reported
E6: Diameter | F6: gpm | G6: mgd | H6: gpm | I6: mgd | J6: gpm | K6: mgd | L6: gpm | M6: mgd
B7: Type of Leak or Break
B8: Appurtenances
B9: Fire hydrant — | E9: ~ | F9: 3.5 | G9: 0.005 | H9: 3.5 | I9: 0.005 | J9: 3.37 | K9: 0.0048 | L9: 3.37 | M9: 0.0048
B10: Valve — | E10: ~ | F10: 6.9 | G10: 0.01 | H10: 6.9 | I10: 0.01 | J10: 6.65 | K10: 0.0096 | L10: 6.65 | M10: 0.0096
B11: Service connection, all sizes | E11: ~ | F11: 6.9 | G11: 0.01 | H11: 6.9 | I11: 0.01 | J11: 6.65 | K11: 0.0096 | L11: 6.65 | M11: 0.0096
B12: Water Mains
B13: Joint leak or repair band leak | E13: 6 in. | F13: 10.4 | G13: 0.015 | H13: 10.4 | I13: 0.015 | J13: 10 | K13: 0.014 | L13: 10 | M13: 0.014 | N13: 6 | O13: =N13*PI() -> 18.84955592 | P13: =H13/O13 -> 0.5517371361 | R13: Joint leak or repair band leak | S13: 6 | T13: 10.4
B14: Joint leak or repair band leak | E14: 8 in. | F14: 17.3 | G14: 0.025 | H14: 17.3 | I14: 0.025 | J14: 16.7 | K14: 0.024 | L14: 16.7 | M14: 0.024 | N14: 8 | O14: =N14*PI() -> 25.13274123 | P14: =H14/O14 -> 0.6883451289 | R14: Joint leak or repair band leak | S14: 8 | T14: 17.3
B15: Joint leak or repair band leak | E15: 10 – 48 in. | F15: 27.8 | G15: 0.04 | H15: 27.8 | I15: 0.04 | J15: 23.7 | K15: 0.034 | L15: 23.7 | M15: 0.034 | N15: 10 | O15: =N15*PI() -> 31.41592654 | P15: =H15/O15 -> 0.8849014836 | R15: Joint leak or repair band leak | S15: 10 | T15: 27.8
B16: Circumferential crack | E16: 4 in. | F16: 34.7 | G16: 0.05 | H16: 69.4 | I16: 0.1 | J16: 33.4 | K16: 0.048 | L16: 66.9 | M16: 0.096 | R16: Circumferential crack | S16: 4 | T16: 69.4
B17: Circumferential crack | E17: 6 in. | F17: 55.5 | G17: 0.08 | H17: 111.1 | I17: 0.16 | J17: 53.3 | K17: 0.077 | L17: 107 | M17: 0.154 | N17: 6 | O17: =N17*PI() -> 18.84955592 | P17: =H17/O17 -> 5.894038059 | R17: Circumferential crack | S17: 6 | T17: 111.1
B18: Circumferential crack | E18: 8 in. | F18: 76.3 | G18: 0.11 | H18: 152.6 | I18: 0.22 | J18: 73.5 | K18: 0.106 | L18: 147 | M18: 0.212 | N18: 8 | O18: =N18*PI() -> 25.13274123 | P18: =H18/O18 -> 6.071761079 | R18: Circumferential crack | S18: 8 | T18: 152.6
B19: Circumferential crack | E19: 10 in. | F19: 93.8 | G19: 0.135 | H19: 187.6 | I19: 0.27 | J19: 90.4 | K19: 0.13 | L19: 180.8 | M19: 0.26 | N19: 10 | O19: =N19*PI() -> 31.41592654 | P19: =H19/O19 -> 5.971493465 | R19: Circumferential crack | S19: 10 | T19: 187.6
B20: Circumferential crack | E20: 12 in. | F20: 111.1 | G20: 0.16 | H20: 222.2 | I20: 0.32 | J20: 107 | K20: 0.154 | L20: 214.1 | M20: 0.308 | R20: Circumferential crack | S20: 12 | T20: 222.2
B21: Longitudinal crack or split bell | E21: 6 in. | F21: 69.4 | G21: 0.1 | H21: 138.9 | I21: 0.2 | J21: 66.9 | K21: 0.096 | L21: 133.8 | M21: 0.193 | N21: 6 | O21: =N21*PI() -> 18.84955592 | P21: =H21/O21 -> 7.368873865 | R21: Longitudinal crack or split bell | S21: 6 | T21: 138.9
B22: Longitudinal crack or split bell | E22: 8 in. | F22: 93.8 | G22: 0.135 | H22: 187.6 | I22: 0.27 | J22: 90.4 | K22: 0.13 | L22: 180.8 | M22: 0.26 | N22: 8 | O22: =N22*PI() -> 25.13274123 | P22: =H22/O22 -> 7.464366831 | R22: Longitudinal crack or split bell | S22: 8 | T22: 187.6
B23: Longitudinal crack or split bell | E23: 10 in. | F23: 111.1 | G23: 0.16 | H23: 222.2 | I23: 0.32 | J23: 107 | K23: 0.154 | L23: 214.1 | M23: 0.308 | N23: 10 | O23: =N23*PI() -> 31.41592654 | P23: =H23/O23 -> 7.072845671 | R23: Longitudinal crack or split bell | S23: 10 | T23: 222.2
B24: Longitudinal crack or split bell | E24: 12 in. | F24: 138.9 | G24: 0.2 | H24: 227.8 | I24: 0.4 | J24: 133.8 | K24: 0.193 | L24: 267.7 | M24: 0.385 | R24: Longitudinal crack or split bell | S24: 12 | T24: 227.8
B25: * Leakage rate at 65 psi = (Leakage rate at 70 psi)[(65/70)0.5]
B27: Table 5-4 of Water Audits and Loss Control Programs, Third edition, AWWA
B28: Leakage losses for circular holes under different pressures
B29: Hole Diam. (in.) | C29: Area of Hole (in2) | D29: Line Pressure (psi)
D30: 20 | E30: 40 | F30: 60 | G30: 80 | H30: 100 | I30: 120 | J30: 140 | K30: 160 | L30: 180 | M30: 200
B31: 0.1 | C31: =((B31/2)^2)*3.1415926 -> 0.0078539815 | D31: 1.067552295 | E31: 1.509746935 | F31: 1.849054815 | G31: 2.135104591 | H31: 2.387119502 | I31: 2.614958398 | J31: 2.824477885 | K31: 3.01949387 | L31: 3.202656886 | M31: 3.375896775
B32: 0.2 | C32: =((B32/2)^2)*3.1415926 -> 0.031415926 | D32: 4.270209182 | E32: 6.038987739 | F32: 7.396219262 | G32: 8.540418364 | H32: 9.548478009 | I32: 10.45983359 | J32: 11.29791154 | K32: 12.07797548 | L32: 12.81062755 | M32: 13.5035871
B33: 0.3 | C33: 0.0706858335 | D33: 9.607970659 | E33: 13.58772241 | F33: 16.64149334 | G33: 19.21594132 | H33: 21.48407552 | I33: 23.53462558 | J33: 25.42030097 | K33: 27.17544483 | L33: 28.82391198 | M33: 30.38307097
B34: 0.4 | C34: 0.125663704 | D34: 17.08083673 | E34: 24.15595096 | F34: 29.58487705 | G34: 34.16167345 | H34: 38.19391203 | I34: 41.83933436 | J34: 45.19164616 | K34: 48.31190191 | L34: 51.24251018 | M34: 54.0143484
B35: 0.5 | C35: 0.1963495375 | D35: 26.68880739 | E35: 37.74367337 | F35: 46.22637039 | G35: 53.37761477 | H35: 59.67798755 | I35: 65.37395994 | J35: 70.61194713 | K35: 75.48734674 | L35: 80.06642216 | M35: 84.39741937
B36: 0.6 | C36: 0.282743334 | D36: 38.43188264 | E36: 54.35088965 | F36: 66.56597336 | G36: 76.86376527 | H36: 85.93630208 | I36: 94.13850231 | J36: 101.6812039 | K36: 108.7017793 | L36: 115.2956479 | M36: 121.5322839
B37: 0.7 | C37: 0.3848450935 | D37: 52.31006248 | E37: 73.9775998 | F37: 90.60368596 | G37: 104.620125 | H37: 116.9688556 | I37: 128.1329615 | J37: 138.3994164 | K37: 147.9551996 | L37: 156.9301874 | M37: 165.418942
B38: 0.8 | C38: 0.502654816 | D38: 68.32334691 | E38: 96.62380382 | F38: 118.3395082 | G38: 136.6466938 | H38: 152.7756481 | I38: 167.3573374 | J38: 180.7665847 | K38: 193.2476076 | L38: 204.9700407 | M38: 216.0573936
B39: 0.9 | C39: 0.6361725015 | D39: 86.47173593 | E39: 122.2895017 | F39: 149.7734401 | G39: 172.9434719 | H39: 193.3566797 | I39: 211.8116302 | J39: 228.7827087 | K39: 244.5790034 | L39: 259.4152078 | M39: 273.4476388
B40: 1 | C40: 0.78539815 | D40: 106.7552295 | E40: 150.9746935 | F40: 184.9054815 | G40: 213.5104591 | H40: 238.7119502 | I40: 261.4958398 | J40: 282.4477885 | K40: 301.949387 | L40: 320.2656886 | M40: 337.5896775
B41: 1.1 | C41: 0.9503317615 | D41: 129.1738277 | E41: 182.6793791 | F41: 223.7356327 | G41: 258.3476555 | H41: 288.8414598 | I41: 316.4099661 | J41: 341.7618241 | K41: 365.3587582 | L41: 387.5214832 | M41: 408.4835098
B42: 1.2 | C42: 1.130973336 | D42: 153.7275305 | E42: 217.4035586 | F42: 266.2638934 | G42: 307.4550611 | H42: 343.7452083 | I42: 376.5540093 | J42: 406.7248155 | K42: 434.8071172 | L42: 461.1825916 | M42: 486.1291356
B43: 1.3 | C43: 1.327322874 | D43: 180.4163379 | E43: 255.147232 | F43: 312.4902638 | G43: 360.8326759 | H43: 403.4231959 | I43: 441.9279692 | J43: 477.3367626 | K43: 510.294464 | L43: 541.2490138 | M43: 570.526555
B44: 1.4 | C44: 1.539380374 | D44: 209.2402499 | E44: 295.9103992 | F44: 362.4147438 | G44: 418.4804998 | H44: 467.8754224 | I44: 512.5318459 | J44: 553.5976655 | K44: 591.8207984 | L44: 627.7207497 | M44: 661.6757679
B45: 1.5 | C45: 1.767145837 | D45: 240.1992665 | E45: 339.6930603 | F45: 416.0373335 | G45: 480.398533 | H45: 537.101888 | I45: 588.3656395 | J45: 635.5075242 | K45: 679.3861206 | L45: 720.5977994 | M45: 759.5767744
B46: 1.6 | C46: 2.010619264 | D46: 273.2933876 | E46: 386.4952153 | F46: 473.3580328 | G46: 546.5867753 | H46: 611.1025926 | I46: 669.4293498 | J46: 723.0663386 | K46: 772.9904306 | L46: 819.8801629 | M46: 864.2295744
B47: 1.7 | C47: 2.269800653 | D47: 308.5226134 | E47: 436.3168641 | F47: 534.3768417 | G47: 617.0452268 | H47: 689.8775361 | I47: 755.7229769 | J47: 816.2741089 | K47: 872.6337283 | L47: 925.5678402 | M47: 975.634168
B48: 1.8 | C48: 2.544690006 | D48: 345.8869437 | E48: 489.1580069 | F48: 599.0937602 | G48: 691.7738874 | H48: 773.4267187 | I48: 847.2465208 | J48: 915.1308348 | K48: 978.3160137 | L48: 1037.660831 | M48: 1093.790555
B49: 1.9 | C49: 2.835287322 | D49: 385.3863787 | E49: 545.0186434 | F49: 667.5087884 | G49: 770.7727573 | H49: 861.7501403 | I49: 943.9999815 | J49: 1019.636517 | K49: 1090.037287 | L49: 1156.159136 | M49: 1218.698736
B50: 2 | C50: 3.1415926 | D50: 427.0209182 | E50: 603.8987739 | F50: 739.6219262 | G50: 854.0418364 | H50: 954.8478009 | I50: 1045.983359 | J50: 1129.791154 | K50: 1207.797548 | L50: 1281.062755 | M50: 1350.35871
B53: Table 5-5 of Water Audits and Loss Control Programs, Third edition, AWWA
B54: Leakage losses for joints and cracks*
D55: Water Pressure (psi)
B56: Length (in.) | C56: Width (in.) | D56: 20 | E56: 40 | F56: 60 | G56: 80 | H56: 100 | I56: 120 | J56: 140 | K56: 160 | L56: 180 | M56: 200
B57: 1 | C57: 0.03125 | D57: 3.185837851 | E57: 4.505455096 | F57: 5.518033023 | G57: 6.371675702 | H57: 7.12375 | I57: 7.803677138 | J57: 8.428934671 | K57: 9.010910193 | L57: 9.557513553 | M57: 10.07450386
B58: 1 | C58: 0.0625 | D58: 6.371675702 | E58: 9.010910193 | F58: 11.03606605 | G58: 12.7433514 | H58: 14.2475 | I58: 15.60735428 | J58: 16.85786934 | K58: 18.02182039 | L58: 19.11502711 | M58: 20.14900773
B59: 1 | C59: 0.125 | D59: 12.7433514 | E59: 18.02182039 | F59: 22.07213209 | G59: 25.48670281 | H59: 28.495 | I59: 31.21470855 | J59: 33.71573868 | K59: 36.04364077 | L59: 38.23005421 | M59: 40.29801546
B60: 1 | C60: 0.25 | D60: 25.48670281 | E60: 36.04364077 | F60: 44.14426418 | G60: 50.97340562 | H60: 56.99 | I60: 62.4294171 | J60: 67.43147737 | K60: 72.08728154 | L60: 76.46010842 | M60: 80.59603092
B63: Drips per second and cups per minute
B64: converted to gallons per minute
B65: Drips per Second | C65: Gallons per Minute | D65: 8-oz Cups per Minute | E65: Gallons per Minute
B66: 1 | C66: 0.006 | D66: 0.25 | E66: 0.016
B67: 2 | C67: 0.012 | D67: 0.5 | E67: 0.031
B68: 3 | C68: 0.018 | D68: 0.75 | E68: 0.047
B69: 4 | C69: 0.024 | D69: 1 | E69: 0.062
B70: 5 | C70: 0.03 | D70: 1.5 | E70: 0.094
D71: 2 | E71: 0.125
D72: 2.5 | E72: 0.156
D73: 3 | E73: 0.188
D74: 3.5 | E74: 0.219
D75: 4 | E75: 0.25
B77: Note: Five drips per second amounts to a steady stream.
B78: https://www.awwa.org/resources-tools/public-affairs/public-information/awwa-drip-calculator.aspx
B79: 1 drip per second equals 8.64 gallons wasted per day.

Sheet Lists (hidden)
B2: How Leak is Defined: | E2: Hole Diameter | G2: Crack Width | H2: pipe diameter | M2: Account_Name | N2: Description | O2: BES_Number
B3: dimension of a circular hole | C3: 1 | D3: 1 | E3: 0.1 | G3: 0.03125 | H3: 4 | J3: visually reported at the surface | K3: 1 | M3: --Select--
B4: dimensions of a crack | C4: 2 | D4: 1 | E4: 0.2 | G4: 0.0625 | H4: 6 | J4: discovered as a result of a leak survey | K4: 0 | M4: ALBION | N4: City of Albion | O4: 10055
B5: drips per second | C5: 3 | D5: 1 | E5: 0.3 | G5: 0.125 | H5: 8 | M5: ALDER | N5: Alder Mutual Light Company | O5: 10005
B6: 8 oz cups per minute | C6: 4 | D6: 1 | E6: 0.4 | G6: 0.25 | H6: 10 | M6: ASHLAND | N6: City of Ashland | O6: 10057
B7: fire hydrant | C7: 5 | D7: 1 | E7: 0.5 | H7: 12 | M7: ASOTIN PUD | N7: Public Utility District No. 1 of Asotin County | O7: 10015
B8: valve | C8: 6 | D8: 1 | E8: 0.6 | M8: BANDON | N8: City of Bandon | O8: 10059
B9: service connection | C9: 7 | D9: 1 | E9: 0.7 | M9: BANGOR | N9: USN Bangor | O9: 10409
B10: joint leak | C10: 8 | D10: 1 | E10: 0.8 | M10: BENTON CO. PUD #1 | N10: Public Utility District No. 1 of Benton County | O10: 10024
B11: repair band leak | C11: 9 | D11: 1 | E11: 0.9 | M11: BENTON REA | N11: Benton Rural Electric Association | O11: 10025
B12: circumfrencial crack | C12: 10 | D12: 0 | E12: 1 | M12: BIG BEND ELECTRIC COOP. | N12: Big Bend Electric Cooperative | O12: 10027
B13: longitudinal crack | C13: 11 | D13: 0 | E13: 1.1 | G13: YES | M13: BLACHLY-LANE ELECTRIC COOP | N13: Blachly-Lane Electric Cooperative | O13: 10029
B14: split bell | C14: 12 | D14: 0 | E14: 1.2 | G14: NO | M14: BLAINE | N14: City of Blaine | O14: 10061
E15: 1.3 | G15: Preliminary | M15: BONNERS FERRY | N15: City of Bonners Ferry | O15: 10062
E16: 1.4 | M16: BREMERTON | N16: USN Bremerton | O16: 10326
E17: 1.5 | M17: BURLEY | N17: City of Burley | O17: 10064
E18: 1.6 | M18: CANBY | N18: Canby Utility Board | O18: 10044
E19: 1.7 | M19: CASCADE LOCKS | N19: City of Cascade Locks | O19: 10065
E20: 1.8 | M20: CENTRAL ELECTRIC COOP. | N20: Central Electric Cooperative, Inc. | O20: 10046
E21: 1.9 | M21: CENTRAL LINCOLN PUD | N21: Central Lincoln People's Utility District | O21: 10047
E22: 2 | M22: CENTRALIA | N22: City of Centralia | O22: 10066
M23: CHELAN CO. PUD #1 | N23: Chelan Co. PUD #1 | O23: 10050
M24: CHENEY | N24: City of Cheney | O24: 10067
M25: CHEWELAH | N25: City of Chewelah | O25: 10068
M26: CLALLAM CO. PUD #1 | N26: Public Utility District No. 1 of Clallam County | O26: 10101
M27: CLARK CO. PUD #1 | N27: Clark Public Utilities | O27: 10103
M28: CLATSKANIE PUD | N28: Clatskanie People's Utility District | O28: 10105
M29: CLEARWATER POWER CO. | N29: Clearwater Power Company | O29: 10106
M30: COLUMBIA BASIN COOP. | N30: Columbia Basin Electric Cooperative, Inc. | O30: 10109
M31: COLUMBIA POWER COOP. | N31: Columbia Power Cooperative Association | O31: 10111
M32: COLUMBIA REA | N32: Columbia Rural Electric Association | O32: 10113
M33: COLUMBIA RIVER PUD | N33: Columbia River People's Utility District | O33: 10112
M34: CONSOLIDATED IRRIGATION DISTRICT #19 | N34: Consolidated Irrigation District No. 19 | O34: 10116
M35: CONSUMERS POWER, INC. | N35: Consumers Power, Inc. | O35: 10118
M36: COOS-CURRY ELECTRIC COOP. | N36: Coos-Curry Electric Cooperative, Inc. | O36: 10121
M37: COULEE DAM | N37: Town of Coulee Dam | O37: 10378
M38: COWLITZ CO. PUD #1 | N38: Public Utility District No. 1 of Cowlitz County | O38: 10123
M39: DECLO | N39: City of Declo | O39: 10070
M40: DOUGLAS CO. PUD #1 | N40: DOUGLAS CO. PUD #1 | O40: 10135
M41: DOUGLAS ELECTRIC COOP. | N41: Douglas Electric Cooperative, Inc. | O41: 10136
M42: DRAIN | N42: City of Drain | O42: 10071
M43: EAST END | N43: East End Mutual Electric Company, LTD | O43: 10142
M44: EATONVILLE | N44: Town of Eatonville | O44: 10144
M45: ELLENSBURG | N45: City of Ellensburg | O45: 10072
M46: ELMHURST | N46: Elmhurst Mutual Power & Light Company | O46: 10156
M47: EMERALD PUD | N47: Emerald People's Utility District | O47: 10157
M48: ENERGY NORTHWEST | N48: Energy Northwest | O48: 10158
M49: EUGENE | N49: Eugene Water & Electric Board | O49: 10170
M50: EVERETT | N50: USN Everett-Jim Creek | O50: 10408
M51: FAIRCHILD AIRFORCE BASE | N51: Fairchild Air Force Base | O51: 10172
M52: FALL RIVER RURAL ELECTRIC COOP. | N52: Fall River Rural Electric Cooperative, Inc. | O52: 10173
M53: FARMERS | N53: Farmers Electric Company, LTD | O53: 10174
M54: FERRY CO. PUD #1 | N54: Public Utility District No. 1 of Ferry County | O54: 10177
M55: FIRCREST | N55: FIRCREST | O55: 10073
M56: FLATHEAD ELECTRIC COOP. | N56: Flathead Electric Cooperative, Inc. | O56: 10179
M57: FOREST GROVE | N57: City of Forest Grove | O57: 10074
M58: FRANKLIN CO. PUD #1 | N58: Public Utility District No. 1 of Franklin County | O58: 10183
M59: GLACIER ELECTRIC COOP. | N59: Glacier Electric Cooperative, Inc. | O59: 10186
M60: GRANT CO. PUD #2 | N60: Public Utility District No. 2 of Grant County, Washington | O60: 10190
M61: GRAYS HARBOR CO. PUD #1 | N61: Public Utility District No. 1 of Grays Harbor County Washington | O61: 10191
M62: HARNEY ELECTRIC COOP. | N62: Harney Electric Cooperative, Inc. | O62: 10197
M63: HERMISTON ENERGY SERVICES | N63: City of Hermiston | O63: 10597
M64: HEYBURN | N64: City of Heyburn | O64: 10076
M65: HOOD RIVER ELECTRIC COOP. | N65: Hood River Electric Cooperative | O65: 10202
M66: IDAHO CO. L & P COOP. | N66: Idaho County Light & Power Cooperative Association, Inc. | O66: 10203
M67: IDAHO FALLS | N67: City of Idaho Falls | O67: 10204
M68: INLAND POWER & LIGHT | N68: Inland Power & Light Company | O68: 10209
M69: JEFFERSON | N69: Public Utility District No.1 of Jefferson County | O69: 12026
M70: KITTITAS CO. PUD #1 | N70: Public Utility District No. 1 of Kittitas County | O70: 10230
M71: KLICKITAT CO. PUD #1 | N71: Public Utility District No. 1 of Klickitat County | O71: 10231
M72: KOOTENAI ELECTRIC COOP. | N72: Kootenai Electric Cooperative, Inc. | O72: 10234
M73: KALISPEL | N73: Kalispel Indian Community of the Kalispel Reservation | O73: 13927
M74: LAKEVIEW L & P CO. | N74: Lakeview Light & Power Company | O74: 10235
M75: LANE ELECTRIC COOP. | N75: Lane Electric Cooperative, Inc. | O75: 10236
M76: LEWIS CO. PUD #1 | N76: Public Utility District No. 1 of Lewis County | O76: 10237
M77: LINCOLN ELECTRIC COOP. MONT | N77: Lincoln Electric Cooperative, Inc. | O77: 10239
M78: LOST RIVER ELECTRIC COOP. | N78: Lost River Electric Cooperative, Inc. | O78: 10242
M79: LOWER VALLEY ENERGY | N79: Lower Valley Energy, Inc. | O79: 10244
M80: MASON CO. PUD #1 | N80: Public Utility District No. 1 of Mason County | O80: 10246
M81: MASON CO. PUD #3 | N81: Public Utility District No. 3 of Mason County | O81: 10247
M82: MCCLEARY | N82: City of McCleary | O82: 10078
M83: MCMINNVILLE | N83: The City of McMinnville | O83: 10079
M84: MIDSTATE ELECTRIC COOP. | N84: Midstate Electric Cooperative, Inc. | O84: 10256
M85: MILTON | N85: City of Milton | O85: 10080
M86: MILTON-FREEWATER | N86: City of Milton-Freewater | O86: 10081
M87: MINIDOKA | N87: City of Minidoka | O87: 10082
M88: MISSION VALLEY POWER | N88: Mission Valley Power | O88: 10258
M89: MISSOULA ELECTRIC COOP. | N89: Missoula Electric Cooperative, Inc. | O89: 10259
M90: MODERN ELECTRIC WATER | N90: Modern Electric Water Company | O90: 10260
M91: MONMOUTH | N91: City of Monmouth | O91: 10083
M92: NESPELEM VALLEY ELECTRIC | N92: Nespelem Valley Electric Cooperative, Inc. | O92: 10273
M93: NORTHERN LIGHTS, INC. | N93: Northern Lights, Inc. | O93: 10278
M94: NORTHERN WASCO PUD | N94: Northern Wasco County People's Utility District | O94: 10279
M95: OHOP MUTUAL | N95: Ohop Mutual Light Company | O95: 10284
M96: OKANOGAN CO. ELECTRIC COOP. | N96: Okanogan County Electric Cooperative, Inc. | O96: 10285
M97: OKANOGAN CO. PUD #1 | N97: Okanogan County Public Utility District No. 1 | O97: 10286
M98: ORCAS POWER & LIGHT COOP. | N98: Orcas Power & Light Cooperative | O98: 10288
M99: OREGON TRAIL ELECTRIC COOP. | N99: Oregon Trail Electric Consumers Cooperative, Inc. | O99: 10291
M100: PACIFIC CO. PUD #2 | N100: Public Utility District No. 2 of Pacific County | O100: 10294
M101: PARKLAND P & L | N101: Parkland Light & Water Company | O101: 10304
M102: PEND OREILLE CO. PUD #1 | N102: Pend Oreille County PUD No. 1 | O102: 10306
M103: PENINSULA POWER & LIGHT INC. | N103: Peninsula Light Company | O103: 10307
M104: PLUMMER | N104: City of Plummer | O104: 10086
M105: PNGC | N105: Pacific Northwest Generating Cooperative | O105: 10298
M106: PORT ANGELES | N106: City of Port Angeles | O106: 10087
M107: PORT OF SEATTLE | N107: Port of Seattle - Seattle-Tacoma International Airport | O107: 10706
M108: RAFT RIVER ELECTRIC COOP. | N108: Raft River Rural Electric Cooperative, Inc. | O108: 10331
M109: RAVALLI ELECTRIC COOP. | N109: Ravalli County Electric Cooperative, Inc. | O109: 10333
M110: RICHLAND | N110: City of Richland, Washington | O110: 10089
M111: RIVERSIDE | N111: Riverside Electric Company, LTD | O111: 10338
M112: RUPERT | N112: City of Rupert | O112: 10091
M113: SALEM ELECTRIC | N113: Salem Electric | O113: 10342
M114: SALMON RIVER ELECTRIC COOP. | N114: Salmon River Electric Cooperative, Inc. | O114: 10343
M115: SEATTLE | N115: City of Seattle, City Light Dept | O115: 10349
M116: SKAMANIA CO. PUD #1 | N116: Public Utility District #1 of Skamania County | O116: 10352
M117: SNOHOMISH CO. PUD #1 | N117: Public Utility District No. 1 Of Snohomish County | O117: 10354
M118: SODA SPRINGS | N118: City of Soda Springs | O118: 10094
M119: SOUTH SIDE ELECTRIC | N119: South Side Electric, Inc. | O119: 10360
M120: SPRINGFIELD | N120: Springfield Utility Board | O120: 10363
M121: STEILACOOM | N121: Town of Steilacoom | O121: 10379
M122: SUMAS | N122: City of Sumas | O122: 10095
M123: SURPRISE VALLEY ELECTRIC CORP. | N123: Surprise Valley Electrification Corporation | O123: 10369
M124: TACOMA POWER | N124: Tacoma Power | O124: 10370
M125: TANNER ELECTRIC | N125: Tanner Electric Cooperative | O125: 10371
M126: TILLAMOOK PUD | N126: Tillamook People's Utility District | O126: 10376
M127: TROY | N127: City of Troy | O127: 10097
M128: UMATILLA ELECTRIC COOP. | N128: Umatilla Electric Cooperative | O128: 10388
M129: UMPQUA INDIAN UTILITY COOP | N129: Umpqua Indian Utility Cooperative | O129: 10482
M130: UNITED ELECTRIC COOPERATIVE, INC. | N130: United Electric Co-op, Inc. | O130: 10391
M131: US BIA WAPATO | N131: US BIA - Wapato | O131: 10399
M132: US DOE NATIONAL TECHNOLOGY LAB | N132: US DOE Natl Energy Technology Lab | O132: 10406
M133: US DOE RICHLAND | N133: US Department of Energy - Richland Operations Office | O133: 10426
M134: VERA WATER & POWER | N134: Vera Water & Power | O134: 10434
M135: VIGILANTE ELECTRIC COOP. | N135: Vigilante Electric Cooperative, Inc. | O135: 10436
M136: WAHKIAKUM CO. PUD #1 | N136: Public Utility District No. 1 of Wahkiakum County | O136: 10440
M137: WASCO ELECTRIC COOP. | N137: Wasco Electric Cooperative, Inc. | O137: 10442
M138: WEISER | N138: City of Weiser | O138: 11680
M139: WELLS RURAL ELECTRIC | N139: Wells Rural Electric Company | O139: 10446
M140: WEST OREGON ELECTRIC COOP. | N140: West Oregon Electric Cooperative, Inc. | O140: 10448
M141: WHATCOM | N141: Public Utility District No 1 of Whatcom County | O141: 10451
M142: YAKAMA POWER | N142: Yakama Power | O142: 10502

Sheet Master Outputs (hidden)
A1: \
A2: Participant Information | B2: Values Transferred | C2: Range Names
A3: Contact Name: | B3: =IF('Customer Information'!D10=0,"",'Customer Information'!D10) ->  | C3: ContactName | E3: orange type | F3: VBA inserts the value | L3: 1 | O3: Revision History
A4: Last Name: | B4: =IF(ISERR(FIND(" ",ContactName,1+FIND(" ",ContactName))),MID(ContactName,FIND(" ",ContactName)+1,LEN(ContactName)),MID(ContactName,1+FIND(" ",ContactName,1+FIND(" ",ContactName)),LEN(ContactName))) ->  | C4: LastName | E4: blue type | F4: the cell has undergone a special intermediary formatting step
A5: Title: | B5: =IF($L$3=2,"Ms.","Mr.") -> Mr. | C5: ContactGender | E5: violet type | F5: the cell is hard coded
A6: Title: | B6: =IF('Customer Information'!R10=0,"",'Customer Information'!R10) ->  | C6: Title | E6: green background | F6: cell is a named range filled by copying a value from the tool
A7: Company Name: | B7: =IF('Customer Information'!D8=0,"",'Customer Information'!D8) ->  | C7: CompanyName | E7: orange type | F7: cell is named range filled by VBA in tool
A8: Mailing Address: | B8: =IF('Customer Information'!D12=0,"",'Customer Information'!D12) ->  | C8: MailStreet | E8: grey background | F8: cell is named range filled by calculation - used by DocMaker, common to all tools
A9: City: | B9: =IF('Customer Information'!R12=0,"",'Customer Information'!R12) ->  | C9: MailCity | E9: no background | F9: cell is used for interim calculations - tool specific may be named or unnamed
A10: State: | B10: =IF('Customer Information'!Z12=0,"",'Customer Information'!Z12) ->  | C10: MailState | E10: yellow background | F10: cell is hand entered every time
A11: Zip: | B11: =IF('Customer Information'!AC12=0,"",'Customer Information'!AC12) ->  | C11: MailZip | E11: orange background | F11: review this cell - it may at times need a manual entry
A12: Site Address: | B12: =IF(IF(ISBLANK('Customer Information'!D25),'Customer Information'!D12,'Customer Information'!D25)=0,"",IF(ISBLANK('Customer Information'!D25),'Customer Information'!D12,'Customer Information'!D25)) ->  | C12: SiteStreet | E12: light blue background | F12: provides the name of the cell immediately to the left
A13: Site City: | B13: =IF(IF(ISBLANK('Customer Information'!Q25),'Customer Information'!R12,'Customer Information'!Q25)=0,"",IF(ISBLANK('Customer Information'!Q25),'Customer Information'!R12,'Customer Information'!Q25)) ->  | C13: SiteCity
A14: Site State: | C14: SiteState
A15: Site Zip: | B15: =IF(IF(ISBLANK('Customer Information'!Z25),'Customer Information'!AC12,'Customer Information'!Z25)=0,"",IF(ISBLANK('Customer Information'!Z25),'Customer Information'!AC12,'Customer Information'!Z25)) ->  | C15: SiteZip
A16: County: | B16: =IF(ISBLANK('Customer Information'!D27),"",'Customer Information'!D27) ->  | C16: SiteCounty
A17: Tel or Cell Phone: | B17: =IF('Customer Information'!D14=0,"",'Customer Information'!D14) ->  | C17: TelOrCell
A18: Fax: | B18: =IF('Customer Information'!L14=0,"",'Customer Information'!L14) ->  | C18: Fax
A19: Email: | B19: =IF('Customer Information'!S14=0,"",'Customer Information'!S14) ->  | C19: ContactEmail
A20: Today's Date (presumed date of doc prep): | B20: =TEXT(NOW(),"mmmm d,yyyy") -> December 20,2021 | C20: DateOfPrep (today's date)
A22: Account Information
A23: Utility Name: | B23: Rocky Mountain Power | C23: UtilityName | E23: GasUtilityName
A24: Rate:
A25: Account Number: | B25: =IF(LEN(TEXT('Customer Information'!Q23,"#"))>2,'Customer Information'!Q23,"") ->  | C25: UtilAccountNumber
A26: Type of Industry: | C26: IndustryType
A27: Reason for Project: | B27: ='Customer Information'!AT145 -> 0 | C27: ReasonForProject
A29: Vendor Information
A30: Vendor Company: | B30: =IF('Customer Information'!D37=0,"",'Customer Information'!D37) ->  | C30: VendorCompany
A31: Sales Representative: | B31: =IF('Customer Information'!P37=0,"",'Customer Information'!P37) ->  | C31: SalesRep
A32: Tel/Cell: | B32: =IF('Customer Information'!Y37=0,"",'Customer Information'!Y37) ->  | C32: VendorTel
A34: Incentive Information
A35: Incentive Rate: | B35: =IncentiveRateCell -> 0 | C35: UtilityIncentiveRate
A36: Incentive Percent of Costs: | B36: =IncentivePercentCell -> 0 | C36: UtilityIncentivePercent
A37: Incentive Cap: | B37: =UtilityIncentivePercent*EstUtilEligibleCost -> 0 | C37: UtilityIncentiveCap
A38: Amount of Federal Funding: | C38: FederalFunding
A40: Project Energy Detail | B40: Electricity | D40: Diesel | F40: Natural Gas | H40: Total Energy
A41: Baseline Energy Use, energy unit | B41: ='Savings Summary'!G72 ->  | C41: BaselineElectricityKwh | E41: BaselineDieselGal | G41: BaselineGasTherms
A42: Baseline Energy Use, MMBTU | B42: =BaselineElectricityKwh*3413/1000000 ->  | C42: BetcBaselineElectricityMMBTU | D42: =BaselineDieselGal*138800/1000000 -> 0 | E42: BetcBaselineDieselMMBTU | F42: =BaselineGasTherms*100000/1000000 -> 0 | G42: BetcBaselineGasMMBTU | H42: =BetcBaselineElectricityMMBTU+BaselineDieselMMBTU+BetcBaselineGasMMBTU ->  | I42: BetcTotalEnergyUsedMMBTU
A43: Upgrade Energy Use, energy unit | B43: ='Savings Summary'!G73 ->  | C43: UpgradeElectricityKwh | E43: UpgradeDieselGal | G43: UpgradeGasTherms
A44: Upgrade Energy Use, MMBTU | B44: =UpgradeElectricityKwh*3413/1000000 ->  | C44: BetcUpgradeElectricityMMBTU | D44: =UpgradeDieselGal*138800/1000000 -> 0 | E44: BetcUpgradeDieselMMBTU | F44: =UpgradeGasTherms*100000/1000000 -> 0 | G44: BetcUpgradeGasMMBTU | H44: =BetcUpgradeElectricityMMBTU+BetcUpgradeDieselMMBTU+BetcUpgradeGasMMBTU ->  | I44: BetcTotalEnergyUpgradeMMBTU
A45: Energy Saved, energy unit | B45: =BaselineElectricityKwh-UpgradeElectricityKwh ->  | C45: kWhSaved, ALSO BetcElectricitySavedKwh | D45: =BaselineDieselGal-UpgradeDieselGal -> 0 | E45: BetcDieselSavedGal | F45: =BaselineGasTherms-UpgradeGasTherms -> 0 | G45: BetcGasSavedTherms
A46: Energy Saved, MMBTU | B46: =BetcBaselineElectricityMMBTU-BetcUpgradeElectricityMMBTU ->  | C46: BetcElectricitySavedMMBTU | D46: =BetcBaselineDieselMMBTU-BetcUpgradeDieselMMBTU -> 0 | E46: BetcDieselSavedMMBTU | F46: =BetcGasSavedTherms*100000/1000000 -> 0 | G46: BetcGasSavedMMBTU | H46: =BetcElectricitySavedMMBTU+BetcDieselSavedMMBTU+BetcGasSavedMMBTU ->  | I46: BetcTotalEnergySavedMMBTU
A47: Busbar Energy Saved, kWh | B47: =(BaselineElectricityKwh-UpgradeElectricityKwh)*B51 ->  | C47: BusbarElectricitySavedkWh
A48: Energy Cost per Energy unit | B48: =ElectricRate -> 0 | C48: ElectricityRate | D48: 2.5 | E48: DieselPrice | F48: 1.15 | G48: GasPrice
A49: Value of Energy Savings | B49: =(BaselineElectricityKwh-UpgradeElectricityKwh)*ElectricityRate ->  | C49: ElectricityCostSavings | D49: =BetcDieselSavedGal*DieselPrice -> 0 | E49: BetcValueDieselSavings | F49: =BetcGasSavedTherms*GasPrice -> 0 | G49: BetcValueGasSavings | H49: =ElectricityCostSavings+BetcValueDieselSavings+BetcValueGasSavings ->  | I49: BetcValueTotalSavings
A50: Value Gas and Electric Savings | B50: =ElectricityCostSavings+BetcValueGasSavings ->  | C50: ValueGasElectricSavings
A51: Busbar Multiplier for BPA projects | B51: 1.09056 | C51: LnLossAdj
A52: Energy savings Text | B52: =IF(BETCElectricitySavedkWh=0,CONCATENATE(TEXT(BetcGasSavedTherms,"#,###")," "," therms"),CONCATENATE(TEXT(BETCElectricitySavedkWh,"#,###"),""," kWh")) ->  | C52: EnergySavingsText
A54: Project Economic Detail
A55: Baseline Equipment Cost | C55: BaselineEquipmentCost
A56: Baseline Installation, Shipping Cost: | B56: ='Savings Summary'!L43 -> 0 | C56: BaselineLaborCost
A57: BETC Total Baseline Cost | B57: =BaselineEquipmentCost+BaselineLaborCost -> 0 | C57: BetcTotalBaselineCost | F57: Text for Project Name based on selected Measures
A58: Upgraded EquipmentCost | B58: ='Savings Summary'!S72 -> 0 | C58: UpgradeEquipmentCost | H58: This represents the text associated with the Dryer measure
A59: Upgrade Installation, Shipping Cost | C59: UpgradeLaborCost | H59: This represents the text associated with the Cooling Fan VFD measure
A60: Energy Trust/Utility Eligible Cost | B60: =UpgradeEquipmentCost -> 0 | C60: EstUtilEligibleCost | H60: This represents the text associated with the Flow Reduction Measure measure
A61: BETC EngineeringCost | C61: BetcEngineeringCost
A62: BETC Other Cost | C62: BetcOtherCost | H62: =F62 -> 0
A63: BETC Total Cost (without fed fund) | B63: =UpgradeEquipmentCost+UpgradeLaborCost+BetcEngineeringCost+BetcOtherCost -> 0 | C63: BetcTotalEstCost | H63: =F63 -> 0
A64: BETC Total Eligible Cost | B64: =BetcTotalEstCost-FederalFunding-BetcTotalBaselineCost -> 0 | C64: BetcTotalProjectCost | H64: 0
A65: BETC Percent Energy Saved | B65: =(BetcTotalEnergySavedMMBTU/BetcTotalEnergyUsedMMBTU)*100 ->  | C65: BetcPercentSaved | H65: 0
A66: BETC Simple Payback | B66: =BetcTotalProjectCost/BetcValueTotalSavings ->  | C66: BetcSimplePayback | H66: 0
A67: BETC Application Fee | B67: =BetcTotalProjectCost*0.006 -> 0 | C67: BetcApplicationFee | H67: 0
H68: 0
A69: Subtotal of all incentives minus BETC | B69: =ETOUpTo50PercentIncentive+FederalFunding ->  | C69: IncentiveSubTotal
A70: Subtotal of all incentives including BETC | B70: =IncentiveSubTotal+EstTaxCredit ->  | C70: IncentiveTotal
A72: Annual value of non-energy benefits: | C72: NonEnergyBenefits
A73: Annual reduction in operating and maintenance costs: | C73: OandMReduction
A74: Assumed customer discount rate: | B74: 0.05 | C74: DiscountRate | D74: (hard coded value - change manually)
A75: Project name: | B75: =CompanyName&" Leak Abatement" -> Leak Abatement | C75: ProjectName
A76: Tool name: | B76: Leak Abatement Energy Savings Tool | C76: ToolName | D76: (hard coded value - change manually)
A77: Tool version: | B77: 2.4 | C77: ToolVersion | D77: (hard coded value - change manually)
A78: Measure name: | B78: 2 | C78: MeasureName
A80: Completion checklist
A81: installed | F81: Installed
A82: removed | F82: Removed
A83: controls | F83: Controls
A84: invoices | B84: Invoices relating to the leak repairs are attached. | F84: Invoices
A86: BETC Description | G86: BetcDescription
A98: DETERMINATION OF CASE-SPECIFIC OUTPUTS
A99: Incentive Determination
A100: Is project Energy Trust? | B100: =IF(SiteState="OR",IF(OR(UtilityName="Pacific Power",UtilityName="PGE"),"YES","NO"),"NO") -> NO | C100: NO | D100: BPA PROJ? | E100: TRUE
A101: Prepare BETC application? | B101: FALSE | C101: BETCAppStatus
A102: Eligibility, Eligible Cost, and Incentive Determination | B102: Meets CE and Thresholds? | C102: Eligible Cost | D102: Incentive or Tax Credit
A103: Energy Trust cost & incentive: | B103: =IF(B201="OK","YES","NO") ->  | C103: =EstUtilEligibleCost -> 0 | D103: =ETOUpTo50PercentIncentive ->  | G103: =TEXT(G102,"#") -> 
A104: BETC tax credit: | B104: =IF(AND((B41-B43)/B41>10%,B193>1),"YES","NO") ->  | C104: =MIN((EstUtilEligibleCost)-FederalFunding,15*BetcValueTotalSavings) ->  | D104: =IF(B101=TRUE,IF(B104="YES",C104*0.35,0),0) -> 0
A105: BPA ESI Utility cost & incentive: (pays on busbar savings) | B105: =IF(TRCBenefit_Cost_Ratio>=1, "YES","NO") ->  | C105: =EstUtilEligibleCost -> 0 | D105: =B261 ->  | G105: Discounted Value of BETC
A106: Other Utility cost & incentive: (pays on site savings) | B106: ='Customer Information'!$AR$147 -> FALSE | C106: =EstUtilEligibleCost -> 0 | D106: =MIN(UtilityIncentiveRate*kWhSaved,UtilityIncentivePercent*EstUtilEligibleCost) ->  | H106: totals | I106: year 1 | J106: year 2 | K106: year 3 | L106: year 4 | M106: year 5
A107: Estimated energy savings for BETC (cell shows gas or electric): | B107: =IF(kWhSaved=0,CONCATENATE(TEXT(BetcGasSavedTherms,"#,###")," ", "therms"),CONCATENATE(TEXT(kWhSaved,"#,###")," ", "kWh")) ->  | C107: EnergySavings | G107: Fraction of BETC in year n: | H107: =SUM(I107:M107) -> 1 | I107: =10/35 -> 0.2857142857 | J107: =10/35 -> 0.2857142857 | K107: =5/35 -> 0.1428571429 | L107: =5/35 -> 0.1428571429 | M107: =5/35 -> 0.1428571429
A108: Estimated tax credit: | B108: =D104 -> 0 | C108: EstTaxCredit | G108: Amount of BETC in year n: | H108: =SUM(I108:M108) -> 0 | I108: =I107*EstTaxCredit -> 0 | J108: =J107*EstTaxCredit -> 0 | K108: =K107*EstTaxCredit -> 0 | L108: =L107*EstTaxCredit -> 0 | M108: =M107*EstTaxCredit -> 0
A109: NPV of tax credit: | B109: =H109 -> 0 | C109: TaxCreditNPV | G109: Discounted amount in year n: | H109: =SUM(I109:M109) -> 0 | I109: =I108/(1+DiscountRate)^1 -> 0 | J109: =J108/(1+DiscountRate)^2 -> 0 | K109: =K108/(1+DiscountRate)^3 -> 0 | L109: =L108/(1+DiscountRate)^4 -> 0 | M109: =M108/(1+DiscountRate)^5 -> 0
A112: 1) Case Energy Trust with BETC | B112: ="Estimated "& J142 &" incentive: " -> Estimated Utility incentive: | D112: =$D$103 ->  | E112: from D102
B113: Estimated BETC tax credit: | D113: =$D$104 -> 0 | J113: Energy | K113: in | M113: local
B114: Net cost after incentives: | D114: =EstUtilEligibleCost-D112-D113 ->  | I114: Case ID | J114: Trust? | K114: Oregon? | L114: BETC? | M114: funding?
I115: 1 | J115: YES | K115: YES | L115: TRUE | M115: NO
B116: Simple payback: | D116: =D114/(ElectricityCostSavings + NonEnergyBenefits+OandMReduction) ->  | I116: 2 | J116: YES | K116: YES | L116: FALSE | M116: NO
B117: NPV over 10 years: | D117: =PV(DiscountRate,10,-ElectricityCostSavings-NonEnergyBenefits-OandMReduction)-'Savings Summary'!$T$66+D112+TaxCreditNPV ->  | I117: 3 | J117: YES | K117: YES | L117: TRUE | M117: YES
A118: 2) Case Energy Trust no BETC | B118: ="Estimated "& J142 &" incentive: " -> Estimated Utility incentive: | D118: =$D$103 ->  | I118: 4 | J118: YES | K118: YES | L118: FALSE | M118: YES
B119: =IF(ETOBonus,"Estimated bonus incentive: ","") ->  | D119: =ETOBonusIncentive ->  | I119: 5 | J119: NO | K119: NO | L119: FALSE | M119: NO
B120: Net cost after incentives: | D120: =EstUtilEligibleCost-D118-D119 ->  | I120: 6 | J120: NO | K120: NO | L120: FALSE | M120: YES
I121: 7 | J121: NO | K121: YES | L121: TRUE | M121: NO
B122: Simple payback: | D122: =D120/(ElectricityCostSavings + NonEnergyBenefits+OandMReduction) ->  | I122: 8 | J122: NO | K122: YES | L122: FALSE | M122: NO
B123: NPV over 10 years: | D123: =PV(DiscountRate,10,-ElectricityCostSavings-NonEnergyBenefits-OandMReduction)-'Savings Summary'!$T$66+D118 ->  | I123: 9 | J123: NO | K123: YES | L123: TRUE | M123: YES
A124: 3) Case Energy Trust with BETC | B124: ="Estimated "& J142 &" incentive: " -> Estimated Utility incentive: | D124: =$D$103 ->  | I124: 10 | J124: NO | K124: YES | L124: FALSE | M124: YES
A125: and with local incentive | B125: Estimated BETC tax credit: | D125: =$D$104 -> 0
B126: Federal or local funding: | D126: =$B$38 -> 0 | I126: This project: | J126: =C100 -> NO | K126: =IF(SiteState="OR","YES","NO") -> NO | L126: =BETCAppStatus -> FALSE | M126: =IF(FederalFunding>0,"YES","NO") -> NO
B127: Net cost after incentives: | D127: =EstUtilEligibleCost-D124-D125-D126 -> 
B128: Simple payback: | D128: =D127/(ElectricityCostSavings + NonEnergyBenefits + OandMReduction) ->  | I128: =IF(SUM($J$128:$M$128)=4,$I$115,"") ->  | J128: =IF(J$126=J115,1,"") ->  | M128: 1
B129: NPV over 10 years: | D129: =PV(DiscountRate,10,-ElectricityCostSavings-NonEnergyBenefits-OandMReduction)-'Savings Summary'!$T$66+D124+TaxCreditNPV+D126 ->  | I129: =IF(SUM($J129:$M129)=4,$I116,"") ->  | L129: 1 | M129: 1
A130: 4) Case Energy Trust no BETC | B130: ="Estimated "& J142 &" incentive: " -> Estimated Utility incentive: | D130: =$D$103 -> 
A131: and with local incentive | B131: Federal or local funding: | D131: =$B$38 -> 0 | L131: 1
B132: =IF(ETOBonus,"Estimated bonus incentive: ","") ->  | D132: =ETOBonusIncentive ->  | I132: =IF(SUM($J132:$M132)=4,$I119,"") -> 5 | J132: 1 | K132: 1 | L132: 1 | M132: 1
B133: Net cost after incentives: | D133: =EstUtilEligibleCost-D130-D132-D131 ->  | J133: 1 | K133: 1 | L133: 1
B134: Simple payback: | D134: =D133/(ElectricityCostSavings + NonEnergyBenefits + OandMReduction) ->  | J134: 1 | M134: 1
B135: NPV over 10 years: | D135: =PV(DiscountRate,10,-ElectricityCostSavings-NonEnergyBenefits-OandMReduction)-'Savings Summary'!$T$66+D130+D131 ->  | J135: 1 | L135: 1 | M135: 1
A136: 5) Case non-Oregon | B136: ="Estimated "& $J$142 &" Incentive: " -> Estimated Utility Incentive: | D136: =IF(IsBPAProject,$D$105,IF(F135="YES",MIN($D$106,F136),$D$106)) ->  | E136: Is this a PacifiCorp project? | F136: =IF(OR(UtilityName="Pacific Power",UtilityName="Rocky Mountain Power"), "YES","NO") -> YES | J136: 1
B137: Net Cost After Incentives: | D137: =EstUtilEligibleCost-D136 ->  | E137: 1 year payback incentive amount | F137: =IF(EstUtilEligibleCost-ElectricityCostSavings<0,0,EstUtilEligibleCost-ElectricityCostSavings) ->  | J137: 1 | L137: 1
I139: Case Selection: | J139: =MAX(I128:I137) -> 5
B140: Simple payback: | D140: =D137/(ElectricityCostSavings + NonEnergyBenefits + OandMReduction) ->  | I140: Row start: | J140: =ROW(BeginFirstCase)+($J$139-1)*6 -> 136
B141: NPV over 10 years: | D141: =PV(DiscountRate,10,-ElectricityCostSavings-NonEnergyBenefits-OandMReduction)-'Savings Summary'!$T$66+D136 ->  | I141: Row end: | J141: =$J$140+5 -> 141
A142: 6) Case non-Oregon with local incent | B142: ="Estimated "& J142 &" incentive: " -> Estimated Utility incentive: | D142: =IF(IsBPAProject,$D$105,IF(F142="YES",MIN($D$106,F143),$D$106)) ->  | E142: Is this a PacifiCorp project? | F142: =IF(OR(UtilityName="Pacific Power",UtilityName="Rocky Mountain Power"), "YES","NO") -> YES | I142: Text for first line in each case: | J142: =IF(J126="YES","Energy Trust","Utility") -> Utility
B143: Federal or local funding: | D143: =$B$38 -> 0 | E143: 1 year payback incentive amount | F143: =IF(EstUtilEligibleCost-ElectricityCostSavings<0,0,EstUtilEligibleCost-ElectricityCostSavings) ->  | I143: Lines from case lineup at left to send over to savings calculation sheet:
B144: Net cost after incentives: | D144: =EstUtilEligibleCost-D142-D143 ->  | I144: =INDIRECT("b"&TEXT($J$140+0,"#")) -> Estimated Utility Incentive: | L144: =INDIRECT("d"&TEXT($J$140+0,"#")) ->  | M144: EstIncentive/CalculatedIncentive
I145: =INDIRECT("b"&TEXT($J$140+1,"#")) -> Net Cost After Incentives: | L145: =INDIRECT("d"&TEXT($J$140+1,"#")) -> 
B146: Simple payback: | D146: =D144/(ElectricityCostSavings + NonEnergyBenefits + OandMReduction) ->  | I146: =INDIRECT("b"&TEXT($J$140+2,"#")) -> 0 | L146: =INDIRECT("d"&TEXT($J$140+2,"#")) -> 0
B147: NPV over 10 years: | D147: =PV(DiscountRate,10,-ElectricityCostSavings-NonEnergyBenefits-OandMReduction)-'Savings Summary'!$T$66+D142+D143 ->  | I147: =INDIRECT("b"&TEXT($J$140+3,"#")) -> 0 | L147: =INDIRECT("d"&TEXT($J$140+3,"#")) -> 0
A148: 7) Case Oregon non Trust w/ BETC | B148: ="Estimated "& J142 &" incentive: " -> Estimated Utility incentive: | D148: =IF(IsBPAProject,$D$105,$D$106) ->  | I148: =INDIRECT("b"&TEXT($J$140+4,"#")) -> Simple payback: | L148: =INDIRECT("d"&TEXT($J$140+4,"#")) ->  | M148: EstSimplePB/EstSimplePayback
B149: Estimated BETC tax credit: | D149: =$D$104 -> 0 | I149: =INDIRECT("b"&TEXT($J$140+5,"#")) -> NPV over 10 years: | L149: =INDIRECT("d"&TEXT($J$140+5,"#")) -> 
B150: Net cost after incentives: | D150: =EstUtilEligibleCost-D148-D149 -> 
B152: Simple payback: | D152: =D150/(ElectricityCostSavings + NonEnergyBenefits + OandMReduction) -> 
B153: NPV over 10 years: | D153: =PV(DiscountRate,10,-ElectricityCostSavings-NonEnergyBenefits-OandMReduction)-'Savings Summary'!$T$66+D148+TaxCreditNPV -> 
A154: 8) Case Oregon non Trust no BETC | B154: ="Estimated "& $J$142 &" Incentive: " -> Estimated Utility Incentive: | D154: =IF(IsBPAProject,$D$105,$D$106) -> 
B155: Net Cost After Incentives: | D155: =EstUtilEligibleCost-D154 -> 
B158: Simple payback: | D158: =D155/(ElectricityCostSavings + NonEnergyBenefits + OandMReduction) -> 
B159: NPV over 10 years: | D159: =PV(DiscountRate,10,-ElectricityCostSavings-NonEnergyBenefits-OandMReduction)-'Savings Summary'!$T$66+D154 -> 
A160: 9) Case Oregon non Trust w/ BETC | B160: ="Estimated "& J142 &" incentive: " -> Estimated Utility incentive: | D160: =IF(IsBPAProject,$D$105,$D$106) -> 
A161: and with local incentive | B161: Estimated BETC tax credit: | D161: =$D$104 -> 0
B162: Federal or local funding: | D162: =$B$38 -> 0
B163: Net cost after incentives: | D163: =EstUtilEligibleCost-D160-D161-D162 -> 
B164: Simple payback: | D164: =D163/(ElectricityCostSavings + NonEnergyBenefits + OandMReduction) -> 
B165: NPV over 10 years: | D165: =PV(DiscountRate,10,-ElectricityCostSavings-NonEnergyBenefits-OandMReduction)-'Savings Summary'!$T$66+D160+TaxCreditNPV+D162 -> 
A166: 10) Case Oregon non Trust no BETC | B166: ="Estimated "& J142 &" Incentive: " -> Estimated Utility Incentive: | D166: =IF(IsBPAProject,$D$105,$D$106) -> 
A167: and with local incentive | B167: Federal or Local Funding: | D167: =$B$38 -> 0
B168: Net Cost After Incentives: | D168: =EstUtilEligibleCost-D166-D167 -> 
B169: Simple payback: | D169: =D168/(ElectricityCostSavings + NonEnergyBenefits + OandMReduction) -> 
B170: NPV over 10 years: | D170: =PV(DiscountRate,10,-ElectricityCostSavings-NonEnergyBenefits-OandMReduction)-'Savings Summary'!$T$66+D166+D167 -> 
A174: ENERGY TRUST COST EFFECTIVENESS TEST
A175: Utility Type: | B175: Gas & Electric
A176: Electric Sponsor: | B176: Portland General | E176: Incentive Rates | F176: Tier 1 | G176: Tier 2 | H176: Simple Payback Required | I176: % Cap | J176: Life | L176: Load Profiles Lookup List | P176: Utility Avoided Costs | Q176: Societal Avoided Costs
A177: Electric Rate ($/kWh): | B177: =ElectricityRate -> 0 | E177: Custom Lighting | F177: 0.17 | G177: 0 | H177: 1 | I177: 0.35 | J177: 15 | L177: Electric | M177: Gas | O177: None0 | P177: 0 | Q177: 0 | S177: 1 | T177: Yes
A178: Gas Sponsor: | B178: Northwest Natural | E178: Custom Non-Lighting | F178: 0.25 | G178: 0.02 | H178: 1 | I178: 0.5 | J178: 15 | L178: FLAT-Elec | M178: FLAT-Gas | O178: None10 | P178: 0 | Q178: 0 | S178: =S177+1 -> 2 | T178: No
A179: Gas Rate ($/therm): | B179: =GasPrice -> 1.15 | E179: Municipal Water Plant | F179: 0.32 | G179: 0.02 | H179: 1 | I179: 0.5 | J179: 20 | L179: IndShift1 | M179: Hot Water | O179: None20 | P179: 0 | Q179: 0 | S179: 3
A180: Project Type: | B180: Custom Non-Lighting | E180: Motors | F180: 0.25 | G180: 0.02 | H180: 1 | I180: 0.5 | J180: 15 | L180: IndShift2 | M180: Space Heat | O180: None30 | P180: 0 | Q180: 0 | S180: 4
A181: Number of Measures: | B181: 2 | E181: Custom Gas Boiler | F181: 0.25 | G181: 0.02 | H181: 1 | I181: 0.5 | J181: 35 | L181: IndShift3 | M181: SolarDHW | O181: None40 | P181: 0 | Q181: 0 | S181: 5
E182: Heat Recovery | F182: 0.25 | G182: 0.02 | H182: 1 | I182: 0.5 | J182: 15 | L182: IrrgAGR | M182: None | O182: None50 | P182: 0 | Q182: 0 | S182: 6
B183: Measure | C183: Scratch Pad | E183: Custom HVAC | F183: 0.25 | G183: 0.02 | H183: 1 | I183: 0.5 | J183: 18 | L183: ExCommLight | O183: None60 | P183: 0 | Q183: 0 | S183: 7
A184: Electric Savings (kWh): | B184: =IF(kWhSaved="",0,kWhSaved) ->  | C184: 10000 | E184: Gas | F184: 2 | G184: 0.15 | H184: 1 | I184: 0.5 | J184: 15 | L184: None | O184: None70 | P184: 0 | Q184: 0 | S184: 8
A185: Gas Savings (therms): | B185: =IF(BetcGasSavedTherms="",0,BetcGasSavedTherms) -> 0 | C185: 1000 | O185: ExCommLight0 | P185: 0.01035165147 | Q185: 0.01035165147 | S185: 9
A186: Energy Savings ($): | B186: =IF(OR($B$177="", $B$179="", B184="", B185=""), "", B184*$B$177+B185*$B$179) ->  | C186: =IF(OR($B$177="", $B$179="", C184="", C185=""), "", C184*$B$177+C185*$B$179) -> 1150 | F186: Measure Results | G186: Scratch Pad Results | O186: ExCommLight10 | P186: 0.6912355427 | Q186: 0.6912355427 | S186: 10
A187: Other Savings ($) - Annual | B187: =NonEnergyBenefits+OandMReduction -> 0 | C187: 0 | E187: Measure Life Up | F187: =CEILING(B189, 10) -> 20 | G187: =CEILING(C189, 10) -> 20 | O187: ExCommLight20 | P187: 1.23640044 | Q187: 1.23640044
A188: Other Savings ($) - NPV | B188: =IF(OR(B189="", B187=""), 0, PV($G$207, B189, -B187)) -> 0 | C188: =IF(OR(C189="", C187=""), 0, PV($G$207, C189, -C187)) -> 0 | E188: Measure Life Down | F188: =FLOOR(B189, 10) -> 10 | G188: =FLOOR(C189, 10) -> 10 | O188: ExCommLight30 | P188: 1.594923696 | Q188: 1.594923696
A189: Measure Life (yrs): | B189: =IF($B$180="","",VLOOKUP($B$180,$E$177:$J$183,6,FALSE)) -> 15 | C189: =IF($B$180="","",VLOOKUP($B$180,$E$177:$J$183,6,FALSE)) -> 15 | E189: Elec Utility AC Up | F189: =VLOOKUP(B191&F187, $O$177:$P$272, 2, FALSE) -> 1.159765621 | G189: =VLOOKUP(C191&G187, $O$177:$P$272, 2, FALSE) -> 1.159765621 | O189: ExCommLight40 | P189: 1.810908212 | Q189: 1.810908212
A190: Elligible Measure Cost ($): | B190: =EstUtilEligibleCost -> 0 | C190: 1000 | E190: Elec Utility AC Down | F190: =VLOOKUP(B191&F188, $O$177:$P$272, 2, FALSE) -> 0.6448921637 | G190: =VLOOKUP(C191&G188, $O$177:$P$272, 2, FALSE) -> 0.6448921637 | O190: ExCommLight50 | P190: 1.940958025 | Q190: 1.940958025
A191: Electric Load Profile: | B191: =VLOOKUP(B217,$D$223:$E$232,2) -> FLAT-Elec | C191: FLAT-Elec | E191: Elec Soc AC Up | F191: =VLOOKUP(B191&F187, $O$177:$Q$272, 3, FALSE) -> 1.159765621 | G191: =VLOOKUP(C191&G187, $O$177:$Q$272, 3, FALSE) -> 1.159765621 | O191: ExCommLight60 | P191: 2.019278525 | Q191: 2.019278525
A192: Gas Load Profile: | B192: Space Heat | C192: FLAT-Gas | E192: Elec Soc AC Down | F192: =VLOOKUP(B191&F188, $O$177:$Q$272, 3, FALSE) -> 0.6448921637 | G192: =VLOOKUP(C191&G188, $O$177:$Q$272, 3, FALSE) -> 0.6448921637 | O192: ExCommLight70 | P192: 2.066449694 | Q192: 2.066449694
A193: Simple Payback (yrs): | B193: =IF(OR(B186="", B190="", B186=0), "", B190/B186) ->  | C193: =IF(OR(C186="", C190="", C186=0), "", C190/C186) -> 0.8695652174 | E193: Gas Utility AC Up | F193: =VLOOKUP(B192&F187, $O$177:$P$272, 2, FALSE) -> 11.91197092 | G193: =VLOOKUP(C192&G187, $O$177:$P$272, 2, FALSE) -> 11.33685302 | O193: FLAT-Elec0 | P193: 0.0102715552 | Q193: 0.0102715552
A194: =VLOOKUP($B$180,$E$177:$I$184,5,FALSE)*100&"% of Project Cost Incentive:" -> 50% of Project Cost Incentive: | B194: =IF(OR($B$180="", B190=""), "", VLOOKUP($B$180, $E$177:$I$184, 5, FALSE)*B190*IF($B$176="Self-Directed", $G$208, 1)) -> 0 | C194: =IF(OR($B$180="", C190=""), "", VLOOKUP($B$180, $E$177:$I$184, 5, FALSE)*C190*IF($B$176="Self-Directed", $G$208, 1)) -> 500 | E194: Gas Utility AC Down | F194: =VLOOKUP(B192&F188, $O$177:$P$272, 2, FALSE) -> 6.759438359 | G194: =VLOOKUP(C192&G188, $O$177:$P$272, 2, FALSE) -> 6.425453418 | O194: FLAT-Elec10 | P194: 0.6448921637 | Q194: 0.6448921637
A195: ="Rate per "&IF($B$175="Electric", "kWh", IF($B$175="Gas", "therm", "kWh & therm"))&" Incentive:" -> Rate per kWh & therm Incentive: | B195: =IF(OR(B184="", B185="", B193="", $B$180=""), "", (B184*IF(B193>VLOOKUP($B$180, $E$177:$H$183, 4, FALSE), VLOOKUP($B$180, $E$177:$F$183, 2, FALSE), VLOOKUP($B$180, $E$177:$G$183, 3, FALSE))+B185*IF(B193>$H$184, $F$184, $G$184))*IF($B$176="Self-Directed", $G$208, 1)) ->  | C195: =IF(OR(C184="", C185="", C193="", $B$180=""), "", (C184*IF(C193>VLOOKUP($B$180, $E$177:$H$183, 4, FALSE), VLOOKUP($B$180, $E$177:$F$183, 2, FALSE), VLOOKUP($B$180, $E$177:$G$183, 3, FALSE))+C185*IF(C193>$H$184, $F$184, $G$184))*IF($B$176="Self-Directed", $G$208, 1)) -> 350 | E195: Gas Soc AC Up | F195: =VLOOKUP(B192&F187, $O$177:$Q$272, 3, FALSE) -> 11.91197092 | G195: =VLOOKUP(C192&G187, $O$177:$Q$272, 3, FALSE) -> 11.33685302 | O195: FLAT-Elec20 | P195: 1.159765621 | Q195: 1.159765621
A196: Split Rule Incentive | B196: =IF(OR(B184="", B185="", B193="", $B$180="", $B$176=""), "", (MIN(B184*IF(B193>VLOOKUP($B$180, $E$177:$H$183, 4, FALSE), VLOOKUP($B$180, $E$177:$F$183, 2, FALSE), VLOOKUP($B$180, $E$177:$G$183, 3, FALSE)), B190*F204*$G$210)+MIN(B185*IF(B193>$H$184, $F$184, $G$184), B190*(1-F204)*$G$209))*IF($B$176="Self-Directed", $G$208, 1)) ->  | C196: =IF(OR(C184="", C185="", C193="", $B$180="", $B$176=""), "", (MIN(C184*IF(C193>VLOOKUP($B$180, $E$177:$H$183, 4, FALSE), VLOOKUP($B$180, $E$177:$F$183, 2, FALSE), VLOOKUP($B$180, $E$177:$G$183, 3, FALSE)), C190*G204*$G$210)+MIN(C185*IF(C193>$H$184, $F$184, $G$184), C190*(1-G204)*$G$209))*IF($B$176="Self-Directed", $G$208, 1)) -> 350 | E196: Gas Soc AC Down | F196: =VLOOKUP(B192&F188, $O$177:$Q$272, 3, FALSE) -> 6.759438359 | G196: =VLOOKUP(C192&G188, $O$177:$Q$272, 3, FALSE) -> 6.425453418 | O196: FLAT-Elec30 | P196: 1.498140856 | Q196: 1.498140856
A197: =IF($B$176="Self-Directed", "*Incentives have been reduced by 50% because of Self-Direct status", "") ->  | O197: FLAT-Elec40 | P197: 1.702000591 | Q197: 1.702000591
A198: Utility BCR Test | B198: =IF(OR(B191="", B192="", B194="", B195=""), 0, (F198*B184+F201*B185)/IF($B$175="Gas & Electric", MIN(B194, B195, B196,$G$206), MIN(B194, B195, $G$206))) ->  | C198: =IF(OR(C191="", C192="", C194="", C195=""), 0, (G198*C184+G201*C185)/IF($B$175="Gas & Electric", MIN(C194, C195, C196,$G$206), MIN(C194, C195, $G$206))) -> 51.15554897 | E198: Elec Utility AC Rate | F198: =IF(F187=F188, F189, FORECAST(B189, F189:F190, F187:F188)) -> 0.9023288924 | G198: =IF(G187=G188, G189, FORECAST(C189, G189:G190, G187:G188)) -> 0.9023288924 | O198: FLAT-Elec50 | P198: 1.824748656 | Q198: 1.824748656
A199: Societal BCR Test | B199: =IF(OR(B191="", B192="", B189="", B184="", B185="", B190=""), 0, (F199*B184+F202*B185+B188)/B190) ->  | C199: =IF(OR(C191="", C192="", C189="", C184="", C185="", C190=""), 0, (G199*C184+G202*C185+C188)/C190) -> 17.90444214 | E199: Elec Soc AC Rate | F199: =IF(F187=F188, F191, FORECAST(B189, F191:F192, F187:F188)) -> 0.9023288924 | G199: =IF(G187=G188, G191, FORECAST(C189, G191:G192, G187:G188)) -> 0.9023288924 | O199: FLAT-Elec60 | P199: 1.898671462 | Q199: 1.898671462
O200: FLAT-Elec70 | P200: 1.943193864 | Q200: 1.943193864
A201: Overall Project Test | B201: =IF(OR(B198=0, B199=0), "", IF(AND(B198>1, B199>1), "OK", "NOT OK")) ->  | C201: =IF(OR(C198=0, C199=0), "", IF(AND(C198>1, C199>1), "OK", "NOT OK")) -> OK | E201: Gas Utility AC Rate | F201: =IF(F187=F188, F193, FORECAST(B189, F193:F194, F187:F188)) -> 9.335704642 | G201: =IF(G187=G188, G193, FORECAST(C189, G193:G194, G187:G188)) -> 8.881153217 | O201: IndShift10 | P201: 0.0110402638 | Q201: 0.0110402638
E202: Gas Soc AC Rate | F202: =IF(F187=F188, F195, FORECAST(B189, F195:F196, F187:F188)) -> 9.335704642 | G202: =IF(G187=G188, G195, FORECAST(C189, G195:G196, G187:G188)) -> 8.881153217 | O202: IndShift110 | P202: 0.6682727984 | Q202: 0.6682727984
A203: Elligible Incentive | B203: =IF(B201="OK", IF($B$175="Gas & Electric", MIN(B194,B195,B196,$G$206), MIN(B194, B195, $G$206)), 0) ->  | C203: =IF(C201="OK", IF($B$175="Gas & Electric", MIN(C194,C195,C196,$G$206), MIN(C194, C195, $G$206)), "") -> 350 | D203: ETOUpTo50PercentIncentive | O203: IndShift120 | P203: 1.200903575 | Q203: 1.200903575
E204: Electric Fraction | F204: =(B184*F198)/(B184*F198+B185*F201) ->  | G204: =(C184*G198)/(C184*G198+C185*G201) -> 0.5039692861 | O204: IndShift130 | P204: 1.551336674 | Q204: 1.551336674
A205: Eligible for 60% Offer? | B205: No | C205: No | O205: IndShift140 | P205: 1.762454065 | Q205: 1.762454065
E206: Utility Type | F206: Max Project Cap | G206: 500000 | O206: IndShift150 | P206: 1.889572167 | Q206: 1.889572167
A207: 60% of Project Cost Incentive: | B207: =IF(OR(B194="",B205="",B205="No"),"",B190*0.6*IF($B$176="Self-Directed", $G$208, 1)) ->  | C207: =IF(OR(C194="",C205="",C205="No"),"",C190*0.6*IF($B$176="Self-Directed", $G$208, 1)) ->  | E207: Electric | F207: Discount Rate | G207: 0.052 | O207: IndShift160 | P207: 1.966126765 | Q207: 1.966126765
A208: 60% Split Rule Incentive | B208: =IF(OR(B196="", B205="No", B205=""), "", (MIN(B184*IF(B193>VLOOKUP($B$180, $E$177:$H$183, 4, FALSE), VLOOKUP($B$180, $E$177:$F$183, 2, FALSE), VLOOKUP($B$180, $E$177:$G$183, 3, FALSE)), B190*F204*0.6)+MIN(B185*IF(B193>$H$184, $F$184, $G$184), B190*(1-F204)*0.6))*IF($B$176="Self-Directed", $G$208, 1)) ->  | C208: =IF(OR(C196="", C205="No", C205=""), "", (MIN(C184*IF(C193>VLOOKUP($B$180, $E$177:$H$183, 4, FALSE), VLOOKUP($B$180, $E$177:$F$183, 2, FALSE), VLOOKUP($B$180, $E$177:$G$183, 3, FALSE)), C190*G204*0.6)+MIN(C185*IF(C193>$H$184, $F$184, $G$184), C190*(1-G204)*0.6))*IF($B$176="Self-Directed", $G$208, 1)) ->  | E208: Gas | F208: Self-Directed Rate | G208: 0.5 | O208: IndShift170 | P208: 2.012234255 | Q208: 2.012234255
E209: Gas & Electric | F209: Gas Proj Cap | G209: 0.5 | O209: IndShift20 | P209: 0.01084930528 | Q209: 0.01084930528
A210: 60% Utility BCR Test | B210: =IF(B207="", 0, (F198*B184+F201*B185)/IF($B$175="Gas & Electric", MIN(B207, B195, B208,$G$206), MIN(B207, B195, $G$206))) -> 0 | C210: =IF(C207="", 0, (G198*C184+G201*C185)/IF($B$175="Gas & Electric", MIN(C207, C195, C196,$G$206), MIN(C207, C195, $G$206))) -> 0 | F210: Electric Proj Cap | G210: 0.5 | O210: IndShift210 | P210: 0.6573997826 | Q210: 0.6573997826
A211: 60% Societal BCR Test | B211: =IF(B207="", 0, (F199*B184+F202*B185+B188)/B190) -> 0 | C211: =IF(C207="", 0, (G199*C184+G202*C185+C188)/C190) -> 0 | E211: Electric Utilities | O211: IndShift220 | P211: 1.181755118 | Q211: 1.181755118
E212: Portland General | O212: IndShift230 | P212: 1.526741092 | Q212: 1.526741092
A213: Overall Project Test at 60% | B213: =IF(OR(B210=0, B211=0), "", IF(AND(B210>1, B211>1), "OK", "NOT OK")) ->  | C213: =IF(OR(C210=0, C211=0), "", IF(AND(C210>1, C211>1), "OK", "NOT OK")) ->  | E213: PacifiCorp | O213: IndShift240 | P213: 1.734577428 | Q213: 1.734577428
E214: Self-Directed | O214: IndShift250 | P214: 1.859719868 | Q214: 1.859719868
A215: Eligible Incentive with 60% Offer | B215: =IF(B213="OK", IF($B$175="Gas & Electric", MIN(B207,B195,B208,$G$206), MIN(B207, B195, $G$206)), "") ->  | C215: =IF(C213="OK", IF($B$175="Gas & Electric", MIN(C207,C195,C208,$G$206), MIN(C207, C195, $G$206)), "") ->  | O215: IndShift260 | P215: 1.935084638 | Q215: 1.935084638
O216: IndShift270 | P216: 1.980475509 | Q216: 1.980475509
A217: Operating hrs/yr | B217: 8760 | E217: Gas Utilities | O217: IndShift30 | P217: 0.01017955196 | Q217: 0.01017955196
A218: Up to 60% Incentive | B218: =MAX(B215,ETOUpTo50PercentIncentive) ->  | C218: =MAX(C215,C203) -> 350 | D218: ETOUpTo60PercentIncentive | E218: Cascade | O218: IndShift310 | P218: 0.629453962 | Q218: 0.629453962
A219: Bonus Incentive | B219: =IF(B213="OK",(ETOUpTo60PercentIncentive-ETOUpTo50PercentIncentive),0) -> 0 | C219: =IF(C213="OK",(C215-C203),0) -> 0 | E219: Northwest Natural | O219: IndShift320 | P219: 1.131656353 | Q219: 1.131656353
O220: IndShift330 | P220: 1.461760883 | Q220: 1.461760883
A221: PrepareBetcDoc Flag | C221: PrepareBetcDoc/CoverPageWithBETC | O221: IndShift340 | P221: 1.660635649 | Q221: 1.660635649
A222: Eligible for bonus incentive? | B222: FALSE | C222: ETOBonus | E222: Load Profiles lookup list | O222: IndShift350 | P222: 1.78038222 | Q222: 1.78038222
A223: Bonus incentive amount: | B223: =ETOBonus*CalculatedIncentive*0.2 ->  | C223: ETOBonusIncentive | D223: 1500 | E223: IndShift1 | F223: 1 Shift Operation | O223: IndShift360 | P223: 1.852497448 | Q223: 1.852497448
A224: Total Incentive: | B224: =ETOBonusIncentive+CalculatedIncentive ->  | C224: TotalEstimatedIncentive | D224: 4160 | E224: IndShift2 | F224: 2 Shift Operation | O224: IndShift370 | P224: 1.895931183 | Q224: 1.895931183
D225: 6240 | E225: IndShift3 | F225: 3 Shift Operation, holidays and weekends off | O225: IrrgAGR0 | P225: 0.009939905402 | Q225: 0.009939905402
A226: =IF(ETOBonus,"Note: the Energy Trust incentive shown includes a special bonus offer. See the attached 420SI-KB form for details.","") ->  | B226: BonusText | D226: 8760 | E226: IrrgAGR | F226: Irrigation | O226: IrrgAGR10 | P226: 0.6578431645 | Q226: 0.6578431645
D227: 8760 | E227: FLAT-Elec | F227: Continual electric operation, 24 hrs/day, 365 days/year | O227: IrrgAGR20 | P227: 1.183656995 | Q227: 1.183656995
E228: ExCommLight | F228: Existing Commercial Lights | O228: IrrgAGR30 | P228: 1.530512563 | Q228: 1.530512563
... 75 more rows

Sheet Version Control (hidden)
B2: Version | C2: Author | D2: Notes
B3: 1 | C3: Eric Van Gelder | D3: ETO option is nullified
B4: 2 | C4: TT | D4: Updates based on JW
B5: 2.2 | C5: Eva Urbatsch | D5: Updates requested by BPA Planning
B7: 2.4 | C7: Doug Heredos | D7: Starting with V2.3, fixed "Incentive Cap" reference on Customer Information page and associated calcs.
